{"text_format":"1","workbook":"xlsx","n_sheets":15,"sheets":["Gennaio","Febbraio","Marzo","Aprile","Maggio","Giugno","Luglio","Agosto","Settembre","Ottobre","Novembre","Dicembre","Riepilogo Annuale","STAMPA - Riepilogo Annuale (A4)","Grafico riepilogativo"],"not_rendered":{"charts":1,"images":0,"macros":1,"external_links":0,"defined_names":14,"comments":0,"pivot_tables":0},"unopened":[],"bounds":{"document_bytes":16777216,"sheet_cells":100000,"rows_first":2000,"rows_last":500,"rows_between":2000,"halvings":0,"cell_chars":16384,"cell_head_chars":4096},"cells_cut":0,"cells_raw":0,"read":"whole","date_system":"1900"}

{"sheet":"Gennaio","index":0,"n_rows":37,"n_cols":33,"rows_kept":37,"cut":false,"hidden":false,"merged":[[8,1,8,31],[30,0,30,32],[37,0,37,32],[0,0,0,32],[2,0,2,32],[9,0,9,32],[16,0,16,32],[23,0,23,32],[36,1,36,31],[29,1,29,31],[22,1,22,31],[15,1,15,31]]}
["GENNAIO"]
[null,1,2,3,4,5,6,7,8,9,10,11,12,13,14,15,16,17,18,19,20,21,22,23,24,25,26,27,28,29,30,31]
[]
[{"$f":"'Riepilogo Annuale'!A4","v":"A1"},null,null,null,null,null,null,null,null,null,null,null,null,null,null,null,null,null,null,null,null,null,null,null,null,null,null,null,null,null,null,null,{"$f":"SUM(B4:AF4)","v":0}]
[{"$f":"'Riepilogo Annuale'!A5","v":"A2"},null,null,null,null,null,null,null,null,null,null,null,null,null,null,null,null,null,null,null,null,null,null,null,null,null,null,null,null,null,null,null,{"$f":"SUM(B5:AF5)","v":0}]
[{"$f":"'Riepilogo Annuale'!A6","v":"A3"},null,null,null,null,null,null,null,null,null,null,null,null,null,null,null,null,null,null,null,null,null,null,null,null,null,null,null,null,null,null,null,{"$f":"SUM(B6:AF6)","v":0}]
[{"$f":"'Riepilogo Annuale'!A7","v":"A4"},null,null,null,null,null,null,null,null,null,null,null,null,null,null,null,null,null,null,null,null,null,null,null,null,null,null,null,null,null,null,null,{"$f":"SUM(B7:AF7)","v":0}]
[{"$f":"'Riepilogo Annuale'!A8","v":"A5"},null,null,null,null,null,null,null,null,null,null,null,null,null,null,null,null,null,null,null,null,null,null,null,null,null,null,null,null,null,null,null,{"$f":"SUM(B8:AF8)","v":0}]
[{"$f":"IF(     AND(ISNUMBER('Riepilogo Annuale'!O2),YEAR(TODAY())='Riepilogo Annuale'!O2,MONTH(TODAY())=1),     AG9/DAY(TODAY()),     AG9/AF2     )","v":0},null,null,null,null,null,null,null,null,null,null,null,null,null,null,null,null,null,null,null,null,null,null,null,null,null,null,null,null,null,null,null,{"$f":"SUM(AG4:AG8)","v":0}]
[]
[{"$f":"'Riepilogo Annuale'!A11","v":"B1"},null,null,null,null,null,null,null,null,null,null,null,null,null,null,null,null,null,null,null,null,null,null,null,null,null,null,null,null,null,null,null,0]
[{"$f":"'Riepilogo Annuale'!A12","v":"B2"},null,null,null,null,null,null,null,null,null,null,null,null,null,null,null,null,null,null,null,null,null,null,null,null,null,null,null,null,null,null,null,{"$f":"SUM(B12:AF12)","v":0}]
[{"$f":"'Riepilogo Annuale'!A13","v":"B3"},null,null,null,null,null,null,null,null,null,null,null,null,null,null,null,null,null,null,null,null,null,null,null,null,null,null,null,null,null,null,null,{"$f":"SUM(B13:AF13)","v":0}]
[{"$f":"'Riepilogo Annuale'!A14","v":"B4"},null,null,null,null,null,null,null,null,null,null,null,null,null,null,null,null,null,null,null,null,null,null,null,null,null,null,null,null,null,null,null,{"$f":"SUM(B14:AF14)","v":0}]
[{"$f":"'Riepilogo Annuale'!A15","v":"B5"},null,null,null,null,null,null,null,null,null,null,null,null,null,null,null,null,null,null,null,null,null,null,null,null,null,null,null,null,null,null,null,{"$f":"SUM(B15:AF15)","v":0}]
[{"$f":"IF(     AND(ISNUMBER('Riepilogo Annuale'!O2),YEAR(TODAY())='Riepilogo Annuale'!O2,MONTH(TODAY())=1),     AG16/DAY(TODAY()),     AG16/AF2     )","v":0},null,null,null,null,null,null,null,null,null,null,null,null,null,null,null,null,null,null,null,null,null,null,null,null,null,null,null,null,null,null,null,{"$f":"SUM(AG11:AG15)","v":0}]
[]
[{"$f":"'Riepilogo Annuale'!A18","v":"C1"},null,null,null,null,null,null,null,null,null,null,null,null,null,null,null,null,null,null,null,null,null,null,null,null,null,null,null,null,null,null,null,0]
[{"$f":"'Riepilogo Annuale'!A19","v":"C2"},null,null,null,null,null,null,null,null,null,null,null,null,null,null,null,null,null,null,null,null,null,null,null,null,null,null,null,null,null,null,null,{"$f":"SUM(B19:AF19)","v":0}]
[{"$f":"'Riepilogo Annuale'!A20","v":"C3"},null,null,null,null,null,null,null,null,null,null,null,null,null,null,null,null,null,null,null,null,null,null,null,null,null,null,null,null,null,null,null,{"$f":"SUM(B20:AF20)","v":0}]
[{"$f":"'Riepilogo Annuale'!A21","v":"C4"},null,null,null,null,null,null,null,null,null,null,null,null,null,null,null,null,null,null,null,null,null,null,null,null,null,null,null,null,null,null,null,{"$f":"SUM(B21:AF21)","v":0}]
[{"$f":"'Riepilogo Annuale'!A22","v":"C5"},null,null,null,null,null,null,null,null,null,null,null,null,null,null,null,null,null,null,null,null,null,null,null,null,null,null,null,null,null,null,null,{"$f":"SUM(B22:AF22)","v":0}]
[{"$f":"IF(     AND(ISNUMBER('Riepilogo Annuale'!O2),YEAR(TODAY())='Riepilogo Annuale'!O2,MONTH(TODAY())=1),     AG23/DAY(TODAY()),     AG23/AF2     )","v":0},null,null,null,null,null,null,null,null,null,null,null,null,null,null,null,null,null,null,null,null,null,null,null,null,null,null,null,null,null,null,null,{"$f":"SUM(AG18:AG22)","v":0}]
[""]
[{"$f":"'Riepilogo Annuale'!A25","v":"D1"},null,null,null,null,null,null,null,null,null,null,null,null,null,null,null,null,null,null,null,null,null,null,null,null,null,null,null,null,null,null,null,0]
[{"$f":"'Riepilogo Annuale'!A26","v":"D2"},null,null,null,null,null,null,null,null,null,null,null,null,null,null,null,null,null,null,null,null,null,null,null,null,null,null,null,null,null,null,null,{"$f":"SUM(B26:AF26)","v":0}]
[{"$f":"'Riepilogo Annuale'!A27","v":"D3"},null,null,null,null,null,null,null,null,null,null,null,null,null,null,null,null,null,null,null,null,null,null,null,null,null,null,null,null,null,null,null,{"$f":"SUM(B27:AF27)","v":0}]
[{"$f":"'Riepilogo Annuale'!A28","v":"D4"},null,null,null,null,null,null,null,null,null,null,null,null,null,null,null,null,null,null,null,null,null,null,null,null,null,null,null,null,null,null,null,{"$f":"SUM(B28:AF28)","v":0}]
[{"$f":"'Riepilogo Annuale'!A29","v":"D5"},null,null,null,null,null,null,null,null,null,null,null,null,null,null,null,null,null,null,null,null,null,null,null,null,null,null,null,null,null,null,null,{"$f":"SUM(B29:AF29)","v":0}]
[{"$f":"IF(     AND(ISNUMBER('Riepilogo Annuale'!O2),YEAR(TODAY())='Riepilogo Annuale'!O2,MONTH(TODAY())=1),     AG30/DAY(TODAY()),     AG30/AF2     )","v":0},null,null,null,null,null,null,null,null,null,null,null,null,null,null,null,null,null,null,null,null,null,null,null,null,null,null,null,null,null,null,null,{"$f":"SUM(AG25:AG29)","v":0}]
[]
[{"$f":"'Riepilogo Annuale'!A32","v":"E1"},null,null,null,null,null,null,null,null,null,null,null,null,null,null,null,null,null,null,null,null,null,null,null,null,null,null,null,null,null,null,null,0]
[{"$f":"'Riepilogo Annuale'!A33","v":"E2"},null,null,null,null,null,null,null,null,null,null,null,null,null,null,null,null,null,null,null,null,null,null,null,null,null,null,null,null,null,null,null,{"$f":"SUM(B33:AF33)","v":0}]
[{"$f":"'Riepilogo Annuale'!A34","v":"E3"},null,null,null,null,null,null,null,null,null,null,null,null,null,null,null,null,null,null,null,null,null,null,null,null,null,null,null,null,null,null,null,{"$f":"SUM(B34:AF34)","v":0}]
[{"$f":"'Riepilogo Annuale'!A35","v":"E4"},null,null,null,null,null,null,null,null,null,null,null,null,null,null,null,null,null,null,null,null,null,null,null,null,null,null,null,null,null,null,null,{"$f":"SUM(B35:AF35)","v":0}]
[{"$f":"'Riepilogo Annuale'!A36","v":"E5"},null,null,null,null,null,null,null,null,null,null,null,null,null,null,null,null,null,null,null,null,null,null,null,null,null,null,null,null,null,null,null,{"$f":"SUM(B36:AF36)","v":0}]
[{"$f":"IF(     AND(ISNUMBER('Riepilogo Annuale'!O2),YEAR(TODAY())='Riepilogo Annuale'!O2,MONTH(TODAY())=1),     AG37/DAY(TODAY()),     AG37/AF2     )","v":0},null,null,null,null,null,null,null,null,null,null,null,null,null,null,null,null,null,null,null,null,null,null,null,null,null,null,null,null,null,null,null,{"$f":"SUM(AG32:AG36)","v":0}]

{"sheet":"Febbraio","index":1,"n_rows":37,"n_cols":33,"rows_kept":37,"cut":false,"hidden":false,"merged":[[36,1,36,31],[37,0,37,32],[0,0,0,32],[2,0,2,32],[9,0,9,32],[16,0,16,32],[30,0,30,32],[23,0,23,32],[8,1,8,31],[15,1,15,31],[22,1,22,31],[29,1,29,31]]}
["FEBBRAIO"]
[null,1,2,3,4,5,6,7,8,9,10,11,12,13,14,15,16,17,18,19,20,21,22,23,24,25,26,27,28,{"$f":"IF(     MOD(YEAR(TODAY()),4)=0,     29,     IF(     ISNUMBER('Riepilogo Annuale'!O2),     IF(     MOD('Riepilogo Annuale'!O2,4)=0,     29,     \"\"     ),     \"\"     )     )","v":""}]
[]
[{"$f":"'Riepilogo Annuale'!A4","v":"A1"},null,null,null,null,null,null,null,null,null,null,null,null,null,null,null,null,null,null,null,null,null,null,null,null,null,null,null,null,null,null,null,{"$f":"SUM(B4:AF4)","v":0}]
[{"$f":"'Riepilogo Annuale'!A5","v":"A2"},null,null,null,null,null,null,null,null,null,null,null,null,null,null,null,null,null,null,null,null,null,null,null,null,null,null,null,null,null,null,null,0]
[{"$f":"'Riepilogo Annuale'!A6","v":"A3"},null,null,null,null,null,null,null,null,null,null,null,null,null,null,null,null,null,null,null,null,null,null,null,null,null,null,null,null,null,null,null,0]
[{"$f":"'Riepilogo Annuale'!A7","v":"A4"},null,null,null,null,null,null,null,null,null,null,null,null,null,null,null,null,null,null,null,null,null,null,null,null,null,null,null,null,null,null,null,0]
[{"$f":"'Riepilogo Annuale'!A8","v":"A5"},null,null,null,null,null,null,null,null,null,null,null,null,null,null,null,null,null,null,null,null,null,null,null,null,null,null,null,null,null,null,null,0]
[{"$f":"IF(     AND(ISNUMBER('Riepilogo Annuale'!O2),YEAR(TODAY())='Riepilogo Annuale'!O2,MONTH(TODAY())=2),     AG9/DAY(TODAY()),     IF(MOD(YEAR(TODAY()),4)=0,AG9/AD2,AG9/AC2)     )","v":0},null,null,null,null,null,null,null,null,null,null,null,null,null,null,null,null,null,null,null,null,null,null,null,null,null,null,null,null,null,null,null,{"$f":"SUM(AG4:AG8)","v":0}]
[]
[{"$f":"'Riepilogo Annuale'!A11","v":"B1"},null,null,null,null,null,null,null,null,null,null,null,null,null,null,null,null,null,null,null,null,null,null,null,null,null,null,null,null,null,null,null,0]
[{"$f":"'Riepilogo Annuale'!A12","v":"B2"},null,null,null,null,null,null,null,null,null,null,null,null,null,null,null,null,null,null,null,null,null,null,null,null,null,null,null,null,null,null,null,0]
[{"$f":"'Riepilogo Annuale'!A13","v":"B3"},null,null,null,null,null,null,null,null,null,null,null,null,null,null,null,null,null,null,null,null,null,null,null,null,null,null,null,null,null,null,null,0]
[{"$f":"'Riepilogo Annuale'!A14","v":"B4"},null,null,null,null,null,null,null,null,null,null,null,null,null,null,null,null,null,null,null,null,null,null,null,null,null,null,null,null,null,null,null,0]
[{"$f":"'Riepilogo Annuale'!A15","v":"B5"},null,null,null,null,null,null,null,null,null,null,null,null,null,null,null,null,null,null,null,null,null,null,null,null,null,null,null,null,null,null,null,0]
[{"$f":"IF(     AND(ISNUMBER('Riepilogo Annuale'!O2),YEAR(TODAY())='Riepilogo Annuale'!O2,MONTH(TODAY())=2),     AG16/DAY(TODAY()),     IF(MOD(YEAR(TODAY()),4)=0,AG16/AD2,AG16/AC2)     )","v":0},null,null,null,null,null,null,null,null,null,null,null,null,null,null,null,null,null,null,null,null,null,null,null,null,null,null,null,null,null,null,null,{"$f":"SUM(AG11:AG15)","v":0}]
[]
[{"$f":"'Riepilogo Annuale'!A18","v":"C1"},null,null,null,null,null,null,null,null,null,null,null,null,null,null,null,null,null,null,null,null,null,null,null,null,null,null,null,null,null,null,null,0]
[{"$f":"'Riepilogo Annuale'!A19","v":"C2"},null,null,null,null,null,null,null,null,null,null,null,null,null,null,null,null,null,null,null,null,null,null,null,null,null,null,null,null,null,null,null,0]
[{"$f":"'Riepilogo Annuale'!A20","v":"C3"},null,null,null,null,null,null,null,null,null,null,null,null,null,null,null,null,null,null,null,null,null,null,null,null,null,null,null,null,null,null,null,0]
[{"$f":"'Riepilogo Annuale'!A21","v":"C4"},null,null,null,null,null,null,null,null,null,null,null,null,null,null,null,null,null,null,null,null,null,null,null,null,null,null,null,null,null,null,null,0]
[{"$f":"'Riepilogo Annuale'!A22","v":"C5"},null,null,null,null,null,null,null,null,null,null,null,null,null,null,null,null,null,null,null,null,null,null,null,null,null,null,null,null,null,null,null,0]
[{"$f":"IF(     AND(ISNUMBER('Riepilogo Annuale'!O2),YEAR(TODAY())='Riepilogo Annuale'!O2,MONTH(TODAY())=2),     AG23/DAY(TODAY()),     IF(MOD(YEAR(TODAY()),4)=0,AG23/AD2,AG23/AC2)     )","v":0},null,null,null,null,null,null,null,null,null,null,null,null,null,null,null,null,null,null,null,null,null,null,null,null,null,null,null,null,null,null,null,{"$f":"SUM(AG18:AG22)","v":0}]
[""]
[{"$f":"'Riepilogo Annuale'!A25","v":"D1"},null,null,null,null,null,null,null,null,null,null,null,null,null,null,null,null,null,null,null,null,null,null,null,null,null,null,null,null,null,null,null,0]
[{"$f":"'Riepilogo Annuale'!A26","v":"D2"},null,null,null,null,null,null,null,null,null,null,null,null,null,null,null,null,null,null,null,null,null,null,null,null,null,null,null,null,null,null,null,0]
[{"$f":"'Riepilogo Annuale'!A27","v":"D3"},null,null,null,null,null,null,null,null,null,null,null,null,null,null,null,null,null,null,null,null,null,null,null,null,null,null,null,null,null,null,null,0]
[{"$f":"'Riepilogo Annuale'!A28","v":"D4"},null,null,null,null,null,null,null,null,null,null,null,null,null,null,null,null,null,null,null,null,null,null,null,null,null,null,null,null,null,null,null,0]
[{"$f":"'Riepilogo Annuale'!A29","v":"D5"},null,null,null,null,null,null,null,null,null,null,null,null,null,null,null,null,null,null,null,null,null,null,null,null,null,null,null,null,null,null,null,0]
[{"$f":"IF(     AND(ISNUMBER('Riepilogo Annuale'!O2),YEAR(TODAY())='Riepilogo Annuale'!O2,MONTH(TODAY())=2),     AG30/DAY(TODAY()),     IF(MOD(YEAR(TODAY()),4)=0,AG30/AD2,AG30/AC2)     )","v":0},null,null,null,null,null,null,null,null,null,null,null,null,null,null,null,null,null,null,null,null,null,null,null,null,null,null,null,null,null,null,null,{"$f":"SUM(AG25:AG29)","v":0}]
[]
[{"$f":"'Riepilogo Annuale'!A32","v":"E1"},null,null,null,null,null,null,null,null,null,null,null,null,null,null,null,null,null,null,null,null,null,null,null,null,null,null,null,null,null,null,null,0]
[{"$f":"'Riepilogo Annuale'!A33","v":"E2"},null,null,null,null,null,null,null,null,null,null,null,null,null,null,null,null,null,null,null,null,null,null,null,null,null,null,null,null,null,null,null,0]
[{"$f":"'Riepilogo Annuale'!A34","v":"E3"},null,null,null,null,null,null,null,null,null,null,null,null,null,null,null,null,null,null,null,null,null,null,null,null,null,null,null,null,null,null,null,0]
[{"$f":"'Riepilogo Annuale'!A35","v":"E4"},null,null,null,null,null,null,null,null,null,null,null,null,null,null,null,null,null,null,null,null,null,null,null,null,null,null,null,null,null,null,null,0]
[{"$f":"'Riepilogo Annuale'!A36","v":"E5"},null,null,null,null,null,null,null,null,null,null,null,null,null,null,null,null,null,null,null,null,null,null,null,null,null,null,null,null,null,null,null,0]
[{"$f":"IF(     AND(ISNUMBER('Riepilogo Annuale'!O2),YEAR(TODAY())='Riepilogo Annuale'!O2,MONTH(TODAY())=2),     AG37/DAY(TODAY()),     IF(MOD(YEAR(TODAY()),4)=0,AG37/AD2,AG37/AC2)     )","v":0},null,null,null,null,null,null,null,null,null,null,null,null,null,null,null,null,null,null,null,null,null,null,null,null,null,null,null,null,null,null,null,{"$f":"SUM(AG32:AG36)","v":0}]

{"sheet":"Marzo","index":2,"n_rows":37,"n_cols":33,"rows_kept":37,"cut":false,"hidden":false,"merged":[[36,1,36,31],[37,0,37,32],[0,0,0,32],[2,0,2,32],[9,0,9,32],[16,0,16,32],[30,0,30,32],[23,0,23,32],[8,1,8,31],[15,1,15,31],[22,1,22,31],[29,1,29,31]]}
["MARZO"]
[null,1,2,3,4,5,6,7,8,9,10,11,12,13,14,15,16,17,18,19,20,21,22,23,24,25,26,27,28,29,30,31]
[]
[{"$f":"'Riepilogo Annuale'!A4","v":"A1"},null,null,null,null,null,null,null,null,null,null,null,null,null,null,null,null,null,null,null,null,null,null,null,null,null,null,null,null,null,null,null,{"$f":"SUM(B4:AF4)","v":0}]
[{"$f":"'Riepilogo Annuale'!A5","v":"A2"},null,null,null,null,null,null,null,null,null,null,null,null,null,null,null,null,null,null,null,null,null,null,null,null,null,null,null,null,null,null,null,0]
[{"$f":"'Riepilogo Annuale'!A6","v":"A3"},null,null,null,null,null,null,null,null,null,null,null,null,null,null,null,null,null,null,null,null,null,null,null,null,null,null,null,null,null,null,null,0]
[{"$f":"'Riepilogo Annuale'!A7","v":"A4"},null,null,null,null,null,null,null,null,null,null,null,null,null,null,null,null,null,null,null,null,null,null,null,null,null,null,null,null,null,null,null,0]
[{"$f":"'Riepilogo Annuale'!A8","v":"A5"},null,null,null,null,null,null,null,null,null,null,null,null,null,null,null,null,null,null,null,null,null,null,null,null,null,null,null,null,null,null,null,0]
[{"$f":"IF(     AND(ISNUMBER('Riepilogo Annuale'!O2),YEAR(TODAY())='Riepilogo Annuale'!O2,MONTH(TODAY())=3),     AG9/DAY(TODAY()),     AG9/AF2     )","v":0},null,null,null,null,null,null,null,null,null,null,null,null,null,null,null,null,null,null,null,null,null,null,null,null,null,null,null,null,null,null,null,{"$f":"SUM(AG4:AG8)","v":0}]
[]
[{"$f":"'Riepilogo Annuale'!A11","v":"B1"},null,null,null,null,null,null,null,null,null,null,null,null,null,null,null,null,null,null,null,null,null,null,null,null,null,null,null,null,null,null,null,0]
[{"$f":"'Riepilogo Annuale'!A12","v":"B2"},null,null,null,null,null,null,null,null,null,null,null,null,null,null,null,null,null,null,null,null,null,null,null,null,null,null,null,null,null,null,null,0]
[{"$f":"'Riepilogo Annuale'!A13","v":"B3"},null,null,null,null,null,null,null,null,null,null,null,null,null,null,null,null,null,null,null,null,null,null,null,null,null,null,null,null,null,null,null,0]
[{"$f":"'Riepilogo Annuale'!A14","v":"B4"},null,null,null,null,null,null,null,null,null,null,null,null,null,null,null,null,null,null,null,null,null,null,null,null,null,null,null,null,null,null,null,0]
[{"$f":"'Riepilogo Annuale'!A15","v":"B5"},null,null,null,null,null,null,null,null,null,null,null,null,null,null,null,null,null,null,null,null,null,null,null,null,null,null,null,null,null,null,null,0]
[{"$f":"IF(     AND(ISNUMBER('Riepilogo Annuale'!O2),YEAR(TODAY())='Riepilogo Annuale'!O2,MONTH(TODAY())=3),     AG16/DAY(TODAY()),     AG16/AF2     )","v":0},null,null,null,null,null,null,null,null,null,null,null,null,null,null,null,null,null,null,null,null,null,null,null,null,null,null,null,null,null,null,null,{"$f":"SUM(AG11:AG15)","v":0}]
[]
[{"$f":"'Riepilogo Annuale'!A18","v":"C1"},null,null,null,null,null,null,null,null,null,null,null,null,null,null,null,null,null,null,null,null,null,null,null,null,null,null,null,null,null,null,null,0]
[{"$f":"'Riepilogo Annuale'!A19","v":"C2"},null,null,null,null,null,null,null,null,null,null,null,null,null,null,null,null,null,null,null,null,null,null,null,null,null,null,null,null,null,null,null,0]
[{"$f":"'Riepilogo Annuale'!A20","v":"C3"},null,null,null,null,null,null,null,null,null,null,null,null,null,null,null,null,null,null,null,null,null,null,null,null,null,null,null,null,null,null,null,0]
[{"$f":"'Riepilogo Annuale'!A21","v":"C4"},null,null,null,null,null,null,null,null,null,null,null,null,null,null,null,null,null,null,null,null,null,null,null,null,null,null,null,null,null,null,null,0]
[{"$f":"'Riepilogo Annuale'!A22","v":"C5"},null,null,null,null,null,null,null,null,null,null,null,null,null,null,null,null,null,null,null,null,null,null,null,null,null,null,null,null,null,null,null,0]
[{"$f":"IF(     AND(ISNUMBER('Riepilogo Annuale'!O2),YEAR(TODAY())='Riepilogo Annuale'!O2,MONTH(TODAY())=3),     AG23/DAY(TODAY()),     AG23/AF2     )","v":0},null,null,null,null,null,null,null,null,null,null,null,null,null,null,null,null,null,null,null,null,null,null,null,null,null,null,null,null,null,null,null,{"$f":"SUM(AG18:AG22)","v":0}]
[""]
[{"$f":"'Riepilogo Annuale'!A25","v":"D1"},null,null,null,null,null,null,null,null,null,null,null,null,null,null,null,null,null,null,null,null,null,null,null,null,null,null,null,null,null,null,null,0]
[{"$f":"'Riepilogo Annuale'!A26","v":"D2"},null,null,null,null,null,null,null,null,null,null,null,null,null,null,null,null,null,null,null,null,null,null,null,null,null,null,null,null,null,null,null,0]
[{"$f":"'Riepilogo Annuale'!A27","v":"D3"},null,null,null,null,null,null,null,null,null,null,null,null,null,null,null,null,null,null,null,null,null,null,null,null,null,null,null,null,null,null,null,0]
[{"$f":"'Riepilogo Annuale'!A28","v":"D4"},null,null,null,null,null,null,null,null,null,null,null,null,null,null,null,null,null,null,null,null,null,null,null,null,null,null,null,null,null,null,null,0]
[{"$f":"'Riepilogo Annuale'!A29","v":"D5"},null,null,null,null,null,null,null,null,null,null,null,null,null,null,null,null,null,null,null,null,null,null,null,null,null,null,null,null,null,null,null,0]
[{"$f":"IF(     AND(ISNUMBER('Riepilogo Annuale'!O2),YEAR(TODAY())='Riepilogo Annuale'!O2,MONTH(TODAY())=3),     AG30/DAY(TODAY()),     AG30/AF2     )","v":0},null,null,null,null,null,null,null,null,null,null,null,null,null,null,null,null,null,null,null,null,null,null,null,null,null,null,null,null,null,null,null,{"$f":"SUM(AG25:AG29)","v":0}]
[]
[{"$f":"'Riepilogo Annuale'!A32","v":"E1"},null,null,null,null,null,null,null,null,null,null,null,null,null,null,null,null,null,null,null,null,null,null,null,null,null,null,null,null,null,null,null,0]
[{"$f":"'Riepilogo Annuale'!A33","v":"E2"},null,null,null,null,null,null,null,null,null,null,null,null,null,null,null,null,null,null,null,null,null,null,null,null,null,null,null,null,null,null,null,0]
[{"$f":"'Riepilogo Annuale'!A34","v":"E3"},null,null,null,null,null,null,null,null,null,null,null,null,null,null,null,null,null,null,null,null,null,null,null,null,null,null,null,null,null,null,null,0]
[{"$f":"'Riepilogo Annuale'!A35","v":"E4"},null,null,null,null,null,null,null,null,null,null,null,null,null,null,null,null,null,null,null,null,null,null,null,null,null,null,null,null,null,null,null,0]
[{"$f":"'Riepilogo Annuale'!A36","v":"E5"},null,null,null,null,null,null,null,null,null,null,null,null,null,null,null,null,null,null,null,null,null,null,null,null,null,null,null,null,null,null,null,0]
[{"$f":"IF(     AND(ISNUMBER('Riepilogo Annuale'!O2),YEAR(TODAY())='Riepilogo Annuale'!O2,MONTH(TODAY())=3),     AG37/DAY(TODAY()),     AG37/AF2     )","v":0},null,null,null,null,null,null,null,null,null,null,null,null,null,null,null,null,null,null,null,null,null,null,null,null,null,null,null,null,null,null,null,{"$f":"SUM(AG32:AG36)","v":0}]

{"sheet":"Aprile","index":3,"n_rows":37,"n_cols":33,"rows_kept":37,"cut":false,"hidden":false,"merged":[[36,1,36,31],[37,0,37,32],[0,0,0,32],[2,0,2,32],[9,0,9,32],[16,0,16,32],[30,0,30,32],[23,0,23,32],[8,1,8,31],[15,1,15,31],[22,1,22,31],[29,1,29,31]]}
["APRILE"]
[null,1,2,3,4,5,6,7,8,9,10,11,12,13,14,15,16,17,18,19,20,21,22,23,24,25,26,27,28,29,30]
[]
[{"$f":"'Riepilogo Annuale'!A4","v":"A1"},null,null,null,null,null,null,null,null,null,null,null,null,null,null,null,null,null,null,null,null,null,null,null,null,null,null,null,null,null,null,null,{"$f":"SUM(B4:AF4)","v":0}]
[{"$f":"'Riepilogo Annuale'!A5","v":"A2"},null,null,null,null,null,null,null,null,null,null,null,null,null,null,null,null,null,null,null,null,null,null,null,null,null,null,null,null,null,null,null,0]
[{"$f":"'Riepilogo Annuale'!A6","v":"A3"},null,null,null,null,null,null,null,null,null,null,null,null,null,null,null,null,null,null,null,null,null,null,null,null,null,null,null,null,null,null,null,0]
[{"$f":"'Riepilogo Annuale'!A7","v":"A4"},null,null,null,null,null,null,null,null,null,null,null,null,null,null,null,null,null,null,null,null,null,null,null,null,null,null,null,null,null,null,null,0]
[{"$f":"'Riepilogo Annuale'!A8","v":"A5"},null,null,null,null,null,null,null,null,null,null,null,null,null,null,null,null,null,null,null,null,null,null,null,null,null,null,null,null,null,null,null,0]
[{"$f":"IF(     AND(ISNUMBER('Riepilogo Annuale'!O2),YEAR(TODAY())='Riepilogo Annuale'!O2,MONTH(TODAY())=4),     AG9/DAY(TODAY()),     AG9/AE2     )","v":0},null,null,null,null,null,null,null,null,null,null,null,null,null,null,null,null,null,null,null,null,null,null,null,null,null,null,null,null,null,null,null,{"$f":"SUM(AG4:AG8)","v":0}]
[]
[{"$f":"'Riepilogo Annuale'!A11","v":"B1"},null,null,null,null,null,null,null,null,null,null,null,null,null,null,null,null,null,null,null,null,null,null,null,null,null,null,null,null,null,null,null,0]
[{"$f":"'Riepilogo Annuale'!A12","v":"B2"},null,null,null,null,null,null,null,null,null,null,null,null,null,null,null,null,null,null,null,null,null,null,null,null,null,null,null,null,null,null,null,0]
[{"$f":"'Riepilogo Annuale'!A13","v":"B3"},null,null,null,null,null,null,null,null,null,null,null,null,null,null,null,null,null,null,null,null,null,null,null,null,null,null,null,null,null,null,null,0]
[{"$f":"'Riepilogo Annuale'!A14","v":"B4"},null,null,null,null,null,null,null,null,null,null,null,null,null,null,null,null,null,null,null,null,null,null,null,null,null,null,null,null,null,null,null,0]
[{"$f":"'Riepilogo Annuale'!A15","v":"B5"},null,null,null,null,null,null,null,null,null,null,null,null,null,null,null,null,null,null,null,null,null,null,null,null,null,null,null,null,null,null,null,0]
[{"$f":"IF(     AND(ISNUMBER('Riepilogo Annuale'!O2),YEAR(TODAY())='Riepilogo Annuale'!O2,MONTH(TODAY())=4),     AG16/DAY(TODAY()),     AG16/AE2     )","v":0},null,null,null,null,null,null,null,null,null,null,null,null,null,null,null,null,null,null,null,null,null,null,null,null,null,null,null,null,null,null,null,{"$f":"SUM(AG11:AG15)","v":0}]
[]
[{"$f":"'Riepilogo Annuale'!A18","v":"C1"},null,null,null,null,null,null,null,null,null,null,null,null,null,null,null,null,null,null,null,null,null,null,null,null,null,null,null,null,null,null,null,0]
[{"$f":"'Riepilogo Annuale'!A19","v":"C2"},null,null,null,null,null,null,null,null,null,null,null,null,null,null,null,null,null,null,null,null,null,null,null,null,null,null,null,null,null,null,null,0]
[{"$f":"'Riepilogo Annuale'!A20","v":"C3"},null,null,null,null,null,null,null,null,null,null,null,null,null,null,null,null,null,null,null,null,null,null,null,null,null,null,null,null,null,null,null,0]
[{"$f":"'Riepilogo Annuale'!A21","v":"C4"},null,null,null,null,null,null,null,null,null,null,null,null,null,null,null,null,null,null,null,null,null,null,null,null,null,null,null,null,null,null,null,0]
[{"$f":"'Riepilogo Annuale'!A22","v":"C5"},null,null,null,null,null,null,null,null,null,null,null,null,null,null,null,null,null,null,null,null,null,null,null,null,null,null,null,null,null,null,null,0]
[{"$f":"IF(     AND(ISNUMBER('Riepilogo Annuale'!O2),YEAR(TODAY())='Riepilogo Annuale'!O2,MONTH(TODAY())=4),     AG23/DAY(TODAY()),     AG23/AE2     )","v":0},null,null,null,null,null,null,null,null,null,null,null,null,null,null,null,null,null,null,null,null,null,null,null,null,null,null,null,null,null,null,null,{"$f":"SUM(AG18:AG22)","v":0}]
[""]
[{"$f":"'Riepilogo Annuale'!A25","v":"D1"},null,null,null,null,null,null,null,null,null,null,null,null,null,null,null,null,null,null,null,null,null,null,null,null,null,null,null,null,null,null,null,0]
[{"$f":"'Riepilogo Annuale'!A26","v":"D2"},null,null,null,null,null,null,null,null,null,null,null,null,null,null,null,null,null,null,null,null,null,null,null,null,null,null,null,null,null,null,null,0]
[{"$f":"'Riepilogo Annuale'!A27","v":"D3"},null,null,null,null,null,null,null,null,null,null,null,null,null,null,null,null,null,null,null,null,null,null,null,null,null,null,null,null,null,null,null,0]
[{"$f":"'Riepilogo Annuale'!A28","v":"D4"},null,null,null,null,null,null,null,null,null,null,null,null,null,null,null,null,null,null,null,null,null,null,null,null,null,null,null,null,null,null,null,0]
[{"$f":"'Riepilogo Annuale'!A29","v":"D5"},null,null,null,null,null,null,null,null,null,null,null,null,null,null,null,null,null,null,null,null,null,null,null,null,null,null,null,null,null,null,null,0]
[{"$f":"IF(     AND(ISNUMBER('Riepilogo Annuale'!O2),YEAR(TODAY())='Riepilogo Annuale'!O2,MONTH(TODAY())=4),     AG30/DAY(TODAY()),     AG30/AE2     )","v":0},null,null,null,null,null,null,null,null,null,null,null,null,null,null,null,null,null,null,null,null,null,null,null,null,null,null,null,null,null,null,null,{"$f":"SUM(AG25:AG29)","v":0}]
[]
[{"$f":"'Riepilogo Annuale'!A32","v":"E1"},null,null,null,null,null,null,null,null,null,null,null,null,null,null,null,null,null,null,null,null,null,null,null,null,null,null,null,null,null,null,null,0]
[{"$f":"'Riepilogo Annuale'!A33","v":"E2"},null,null,null,null,null,null,null,null,null,null,null,null,null,null,null,null,null,null,null,null,null,null,null,null,null,null,null,null,null,null,null,0]
[{"$f":"'Riepilogo Annuale'!A34","v":"E3"},null,null,null,null,null,null,null,null,null,null,null,null,null,null,null,null,null,null,null,null,null,null,null,null,null,null,null,null,null,null,null,0]
[{"$f":"'Riepilogo Annuale'!A35","v":"E4"},null,null,null,null,null,null,null,null,null,null,null,null,null,null,null,null,null,null,null,null,null,null,null,null,null,null,null,null,null,null,null,0]
[{"$f":"'Riepilogo Annuale'!A36","v":"E5"},null,null,null,null,null,null,null,null,null,null,null,null,null,null,null,null,null,null,null,null,null,null,null,null,null,null,null,null,null,null,null,0]
[{"$f":"IF(     AND(ISNUMBER('Riepilogo Annuale'!O2),YEAR(TODAY())='Riepilogo Annuale'!O2,MONTH(TODAY())=4),     AG37/DAY(TODAY()),     AG37/AE2     )","v":0},null,null,null,null,null,null,null,null,null,null,null,null,null,null,null,null,null,null,null,null,null,null,null,null,null,null,null,null,null,null,null,{"$f":"SUM(AG32:AG36)","v":0}]

{"sheet":"Maggio","index":4,"n_rows":37,"n_cols":33,"rows_kept":37,"cut":false,"hidden":false,"merged":[[36,1,36,31],[37,0,37,32],[0,0,0,32],[2,0,2,32],[9,0,9,32],[16,0,16,32],[30,0,30,32],[23,0,23,32],[8,1,8,31],[15,1,15,31],[22,1,22,31],[29,1,29,31]]}
["MAGGIO"]
[null,1,2,3,4,5,6,7,8,9,10,11,12,13,14,15,16,17,18,19,20,21,22,23,24,25,26,27,28,29,30,31]
[]
[{"$f":"'Riepilogo Annuale'!A4","v":"A1"},null,null,null,null,null,null,null,null,null,null,null,null,null,null,null,null,null,null,null,null,null,null,null,null,null,null,null,null,null,null,null,{"$f":"SUM(B4:AF4)","v":0}]
[{"$f":"'Riepilogo Annuale'!A5","v":"A2"},null,null,null,null,null,null,null,null,null,null,null,null,null,null,null,null,null,null,null,null,null,null,null,null,null,null,null,null,null,null,null,0]
[{"$f":"'Riepilogo Annuale'!A6","v":"A3"},null,null,null,null,null,null,null,null,null,null,null,null,null,null,null,null,null,null,null,null,null,null,null,null,null,null,null,null,null,null,null,0]
[{"$f":"'Riepilogo Annuale'!A7","v":"A4"},null,null,null,null,null,null,null,null,null,null,null,null,null,null,null,null,null,null,null,null,null,null,null,null,null,null,null,null,null,null,null,0]
[{"$f":"'Riepilogo Annuale'!A8","v":"A5"},null,null,null,null,null,null,null,null,null,null,null,null,null,null,null,null,null,null,null,null,null,null,null,null,null,null,null,null,null,null,null,0]
[{"$f":"IF(     AND(ISNUMBER('Riepilogo Annuale'!O2),YEAR(TODAY())='Riepilogo Annuale'!O2,MONTH(TODAY())=5),     AG9/DAY(TODAY()),     AG9/AF2     )","v":0},null,null,null,null,null,null,null,null,null,null,null,null,null,null,null,null,null,null,null,null,null,null,null,null,null,null,null,null,null,null,null,{"$f":"SUM(AG4:AG8)","v":0}]
[]
[{"$f":"'Riepilogo Annuale'!A11","v":"B1"},null,null,null,null,null,null,null,null,null,null,null,null,null,null,null,null,null,null,null,null,null,null,null,null,null,null,null,null,null,null,null,0]
[{"$f":"'Riepilogo Annuale'!A12","v":"B2"},null,null,null,null,null,null,null,null,null,null,null,null,null,null,null,null,null,null,null,null,null,null,null,null,null,null,null,null,null,null,null,0]
[{"$f":"'Riepilogo Annuale'!A13","v":"B3"},null,null,null,null,null,null,null,null,null,null,null,null,null,null,null,null,null,null,null,null,null,null,null,null,null,null,null,null,null,null,null,0]
[{"$f":"'Riepilogo Annuale'!A14","v":"B4"},null,null,null,null,null,null,null,null,null,null,null,null,null,null,null,null,null,null,null,null,null,null,null,null,null,null,null,null,null,null,null,0]
[{"$f":"'Riepilogo Annuale'!A15","v":"B5"},null,null,null,null,null,null,null,null,null,null,null,null,null,null,null,null,null,null,null,null,null,null,null,null,null,null,null,null,null,null,null,0]
[{"$f":"IF(     AND(ISNUMBER('Riepilogo Annuale'!O2),YEAR(TODAY())='Riepilogo Annuale'!O2,MONTH(TODAY())=5),     AG16/DAY(TODAY()),     AG16/AF2     )","v":0},null,null,null,null,null,null,null,null,null,null,null,null,null,null,null,null,null,null,null,null,null,null,null,null,null,null,null,null,null,null,null,{"$f":"SUM(AG11:AG15)","v":0}]
[]
[{"$f":"'Riepilogo Annuale'!A18","v":"C1"},null,null,null,null,null,null,null,null,null,null,null,null,null,null,null,null,null,null,null,null,null,null,null,null,null,null,null,null,null,null,null,0]
[{"$f":"'Riepilogo Annuale'!A19","v":"C2"},null,null,null,null,null,null,null,null,null,null,null,null,null,null,null,null,null,null,null,null,null,null,null,null,null,null,null,null,null,null,null,0]
[{"$f":"'Riepilogo Annuale'!A20","v":"C3"},null,null,null,null,null,null,null,null,null,null,null,null,null,null,null,null,null,null,null,null,null,null,null,null,null,null,null,null,null,null,null,0]
[{"$f":"'Riepilogo Annuale'!A21","v":"C4"},null,null,null,null,null,null,null,null,null,null,null,null,null,null,null,null,null,null,null,null,null,null,null,null,null,null,null,null,null,null,null,0]
[{"$f":"'Riepilogo Annuale'!A22","v":"C5"},null,null,null,null,null,null,null,null,null,null,null,null,null,null,null,null,null,null,null,null,null,null,null,null,null,null,null,null,null,null,null,0]
[{"$f":"IF(     AND(ISNUMBER('Riepilogo Annuale'!O2),YEAR(TODAY())='Riepilogo Annuale'!O2,MONTH(TODAY())=5),     AG23/DAY(TODAY()),     AG23/AF2     )","v":0},null,null,null,null,null,null,null,null,null,null,null,null,null,null,null,null,null,null,null,null,null,null,null,null,null,null,null,null,null,null,null,{"$f":"SUM(AG18:AG22)","v":0}]
[""]
[{"$f":"'Riepilogo Annuale'!A25","v":"D1"},null,null,null,null,null,null,null,null,null,null,null,null,null,null,null,null,null,null,null,null,null,null,null,null,null,null,null,null,null,null,null,0]
[{"$f":"'Riepilogo Annuale'!A26","v":"D2"},null,null,null,null,null,null,null,null,null,null,null,null,null,null,null,null,null,null,null,null,null,null,null,null,null,null,null,null,null,null,null,0]
[{"$f":"'Riepilogo Annuale'!A27","v":"D3"},null,null,null,null,null,null,null,null,null,null,null,null,null,null,null,null,null,null,null,null,null,null,null,null,null,null,null,null,null,null,null,0]
[{"$f":"'Riepilogo Annuale'!A28","v":"D4"},null,null,null,null,null,null,null,null,null,null,null,null,null,null,null,null,null,null,null,null,null,null,null,null,null,null,null,null,null,null,null,0]
[{"$f":"'Riepilogo Annuale'!A29","v":"D5"},null,null,null,null,null,null,null,null,null,null,null,null,null,null,null,null,null,null,null,null,null,null,null,null,null,null,null,null,null,null,null,0]
[{"$f":"IF(     AND(ISNUMBER('Riepilogo Annuale'!O2),YEAR(TODAY())='Riepilogo Annuale'!O2,MONTH(TODAY())=5),     AG30/DAY(TODAY()),     AG30/AF2     )","v":0},null,null,null,null,null,null,null,null,null,null,null,null,null,null,null,null,null,null,null,null,null,null,null,null,null,null,null,null,null,null,null,{"$f":"SUM(AG25:AG29)","v":0}]
[]
[{"$f":"'Riepilogo Annuale'!A32","v":"E1"},null,null,null,null,null,null,null,null,null,null,null,null,null,null,null,null,null,null,null,null,null,null,null,null,null,null,null,null,null,null,null,0]
[{"$f":"'Riepilogo Annuale'!A33","v":"E2"},null,null,null,null,null,null,null,null,null,null,null,null,null,null,null,null,null,null,null,null,null,null,null,null,null,null,null,null,null,null,null,0]
[{"$f":"'Riepilogo Annuale'!A34","v":"E3"},null,null,null,null,null,null,null,null,null,null,null,null,null,null,null,null,null,null,null,null,null,null,null,null,null,null,null,null,null,null,null,0]
[{"$f":"'Riepilogo Annuale'!A35","v":"E4"},null,null,null,null,null,null,null,null,null,null,null,null,null,null,null,null,null,null,null,null,null,null,null,null,null,null,null,null,null,null,null,0]
[{"$f":"'Riepilogo Annuale'!A36","v":"E5"},null,null,null,null,null,null,null,null,null,null,null,null,null,null,null,null,null,null,null,null,null,null,null,null,null,null,null,null,null,null,null,0]
[{"$f":"IF(     AND(ISNUMBER('Riepilogo Annuale'!O2),YEAR(TODAY())='Riepilogo Annuale'!O2,MONTH(TODAY())=5),     AG37/DAY(TODAY()),     AG37/AF2     )","v":0},null,null,null,null,null,null,null,null,null,null,null,null,null,null,null,null,null,null,null,null,null,null,null,null,null,null,null,null,null,null,null,{"$f":"SUM(AG32:AG36)","v":0}]

{"sheet":"Giugno","index":5,"n_rows":37,"n_cols":33,"rows_kept":37,"cut":false,"hidden":false,"merged":[[36,1,36,31],[37,0,37,32],[0,0,0,32],[2,0,2,32],[9,0,9,32],[16,0,16,32],[30,0,30,32],[23,0,23,32],[8,1,8,31],[15,1,15,31],[22,1,22,31],[29,1,29,31]]}
["GIUGNO"]
[null,1,2,3,4,5,6,7,8,9,10,11,12,13,14,15,16,17,18,19,20,21,22,23,24,25,26,27,28,29,30]
[]
[{"$f":"'Riepilogo Annuale'!A4","v":"A1"},null,null,null,null,null,null,null,null,null,null,null,null,null,null,null,null,null,null,null,null,null,null,null,null,null,null,null,null,null,null,null,{"$f":"SUM(B4:AF4)","v":0}]
[{"$f":"'Riepilogo Annuale'!A5","v":"A2"},null,null,null,null,null,null,null,null,null,null,null,null,null,null,null,null,null,null,null,null,null,null,null,null,null,null,null,null,null,null,null,0]
[{"$f":"'Riepilogo Annuale'!A6","v":"A3"},null,null,null,null,null,null,null,null,null,null,null,null,null,null,null,null,null,null,null,null,null,null,null,null,null,null,null,null,null,null,null,0]
[{"$f":"'Riepilogo Annuale'!A7","v":"A4"},null,null,null,null,null,null,null,null,null,null,null,null,null,null,null,null,null,null,null,null,null,null,null,null,null,null,null,null,null,null,null,0]
[{"$f":"'Riepilogo Annuale'!A8","v":"A5"},null,null,null,null,null,null,null,null,null,null,null,null,null,null,null,null,null,null,null,null,null,null,null,null,null,null,null,null,null,null,null,0]
[{"$f":"IF(     AND(ISNUMBER('Riepilogo Annuale'!O2),YEAR(TODAY())='Riepilogo Annuale'!O2,MONTH(TODAY())=6),     AG9/DAY(TODAY()),     AG9/AE2     )","v":0},null,null,null,null,null,null,null,null,null,null,null,null,null,null,null,null,null,null,null,null,null,null,null,null,null,null,null,null,null,null,null,{"$f":"SUM(AG4:AG8)","v":0}]
[]
[{"$f":"'Riepilogo Annuale'!A11","v":"B1"},null,null,null,null,null,null,null,null,null,null,null,null,null,null,null,null,null,null,null,null,null,null,null,null,null,null,null,null,null,null,null,0]
[{"$f":"'Riepilogo Annuale'!A12","v":"B2"},null,null,null,null,null,null,null,null,null,null,null,null,null,null,null,null,null,null,null,null,null,null,null,null,null,null,null,null,null,null,null,0]
[{"$f":"'Riepilogo Annuale'!A13","v":"B3"},null,null,null,null,null,null,null,null,null,null,null,null,null,null,null,null,null,null,null,null,null,null,null,null,null,null,null,null,null,null,null,0]
[{"$f":"'Riepilogo Annuale'!A14","v":"B4"},null,null,null,null,null,null,null,null,null,null,null,null,null,null,null,null,null,null,null,null,null,null,null,null,null,null,null,null,null,null,null,0]
[{"$f":"'Riepilogo Annuale'!A15","v":"B5"},null,null,null,null,null,null,null,null,null,null,null,null,null,null,null,null,null,null,null,null,null,null,null,null,null,null,null,null,null,null,null,0]
[{"$f":"IF(     AND(ISNUMBER('Riepilogo Annuale'!O2),YEAR(TODAY())='Riepilogo Annuale'!O2,MONTH(TODAY())=6),     AG16/DAY(TODAY()),     AG16/AE2     )","v":0},null,null,null,null,null,null,null,null,null,null,null,null,null,null,null,null,null,null,null,null,null,null,null,null,null,null,null,null,null,null,null,{"$f":"SUM(AG11:AG15)","v":0}]
[]
[{"$f":"'Riepilogo Annuale'!A18","v":"C1"},null,null,null,null,null,null,null,null,null,null,null,null,null,null,null,null,null,null,null,null,null,null,null,null,null,null,null,null,null,null,null,0]
[{"$f":"'Riepilogo Annuale'!A19","v":"C2"},null,null,null,null,null,null,null,null,null,null,null,null,null,null,null,null,null,null,null,null,null,null,null,null,null,null,null,null,null,null,null,0]
[{"$f":"'Riepilogo Annuale'!A20","v":"C3"},null,null,null,null,null,null,null,null,null,null,null,null,null,null,null,null,null,null,null,null,null,null,null,null,null,null,null,null,null,null,null,0]
[{"$f":"'Riepilogo Annuale'!A21","v":"C4"},null,null,null,null,null,null,null,null,null,null,null,null,null,null,null,null,null,null,null,null,null,null,null,null,null,null,null,null,null,null,null,0]
[{"$f":"'Riepilogo Annuale'!A22","v":"C5"},null,null,null,null,null,null,null,null,null,null,null,null,null,null,null,null,null,null,null,null,null,null,null,null,null,null,null,null,null,null,null,0]
[{"$f":"IF(     AND(ISNUMBER('Riepilogo Annuale'!O2),YEAR(TODAY())='Riepilogo Annuale'!O2,MONTH(TODAY())=6),     AG23/DAY(TODAY()),     AG23/AE2     )","v":0},null,null,null,null,null,null,null,null,null,null,null,null,null,null,null,null,null,null,null,null,null,null,null,null,null,null,null,null,null,null,null,{"$f":"SUM(AG18:AG22)","v":0}]
[""]
[{"$f":"'Riepilogo Annuale'!A25","v":"D1"},null,null,null,null,null,null,null,null,null,null,null,null,null,null,null,null,null,null,null,null,null,null,null,null,null,null,null,null,null,null,null,0]
[{"$f":"'Riepilogo Annuale'!A26","v":"D2"},null,null,null,null,null,null,null,null,null,null,null,null,null,null,null,null,null,null,null,null,null,null,null,null,null,null,null,null,null,null,null,0]
[{"$f":"'Riepilogo Annuale'!A27","v":"D3"},null,null,null,null,null,null,null,null,null,null,null,null,null,null,null,null,null,null,null,null,null,null,null,null,null,null,null,null,null,null,null,0]
[{"$f":"'Riepilogo Annuale'!A28","v":"D4"},null,null,null,null,null,null,null,null,null,null,null,null,null,null,null,null,null,null,null,null,null,null,null,null,null,null,null,null,null,null,null,0]
[{"$f":"'Riepilogo Annuale'!A29","v":"D5"},null,null,null,null,null,null,null,null,null,null,null,null,null,null,null,null,null,null,null,null,null,null,null,null,null,null,null,null,null,null,null,0]
[{"$f":"IF(     AND(ISNUMBER('Riepilogo Annuale'!O2),YEAR(TODAY())='Riepilogo Annuale'!O2,MONTH(TODAY())=6),     AG30/DAY(TODAY()),     AG30/AE2     )","v":0},null,null,null,null,null,null,null,null,null,null,null,null,null,null,null,null,null,null,null,null,null,null,null,null,null,null,null,null,null,null,null,{"$f":"SUM(AG25:AG29)","v":0}]
[]
[{"$f":"'Riepilogo Annuale'!A32","v":"E1"},null,null,null,null,null,null,null,null,null,null,null,null,null,null,null,null,null,null,null,null,null,null,null,null,null,null,null,null,null,null,null,0]
[{"$f":"'Riepilogo Annuale'!A33","v":"E2"},null,null,null,null,null,null,null,null,null,null,null,null,null,null,null,null,null,null,null,null,null,null,null,null,null,null,null,null,null,null,null,0]
[{"$f":"'Riepilogo Annuale'!A34","v":"E3"},null,null,null,null,null,null,null,null,null,null,null,null,null,null,null,null,null,null,null,null,null,null,null,null,null,null,null,null,null,null,null,0]
[{"$f":"'Riepilogo Annuale'!A35","v":"E4"},null,null,null,null,null,null,null,null,null,null,null,null,null,null,null,null,null,null,null,null,null,null,null,null,null,null,null,null,null,null,null,0]
[{"$f":"'Riepilogo Annuale'!A36","v":"E5"},null,null,null,null,null,null,null,null,null,null,null,null,null,null,null,null,null,null,null,null,null,null,null,null,null,null,null,null,null,null,null,0]
[{"$f":"IF(     AND(ISNUMBER('Riepilogo Annuale'!O2),YEAR(TODAY())='Riepilogo Annuale'!O2,MONTH(TODAY())=6),     AG37/DAY(TODAY()),     AG37/AE2     )","v":0},null,null,null,null,null,null,null,null,null,null,null,null,null,null,null,null,null,null,null,null,null,null,null,null,null,null,null,null,null,null,null,{"$f":"SUM(AG32:AG36)","v":0}]

{"sheet":"Luglio","index":6,"n_rows":37,"n_cols":33,"rows_kept":37,"cut":false,"hidden":false,"merged":[[36,1,36,31],[37,0,37,32],[0,0,0,32],[2,0,2,32],[9,0,9,32],[16,0,16,32],[30,0,30,32],[23,0,23,32],[8,1,8,31],[15,1,15,31],[22,1,22,31],[29,1,29,31]]}
["LUGLIO"]
[null,1,2,3,4,5,6,7,8,9,10,11,12,13,14,15,16,17,18,19,20,21,22,23,24,25,26,27,28,29,30,31]
[]
[{"$f":"'Riepilogo Annuale'!A4","v":"A1"},null,null,null,null,null,null,null,null,null,null,null,null,null,null,null,null,null,null,null,null,null,null,null,null,null,null,null,null,null,null,null,{"$f":"SUM(B4:AF4)","v":0}]
[{"$f":"'Riepilogo Annuale'!A5","v":"A2"},null,null,null,null,null,null,null,null,null,null,null,null,null,null,null,null,null,null,null,null,null,null,null,null,null,null,null,null,null,null,null,0]
[{"$f":"'Riepilogo Annuale'!A6","v":"A3"},null,null,null,null,null,null,null,null,null,null,null,null,null,null,null,null,null,null,null,null,null,null,null,null,null,null,null,null,null,null,null,0]
[{"$f":"'Riepilogo Annuale'!A7","v":"A4"},null,null,null,null,null,null,null,null,null,null,null,null,null,null,null,null,null,null,null,null,null,null,null,null,null,null,null,null,null,null,null,0]
[{"$f":"'Riepilogo Annuale'!A8","v":"A5"},null,null,null,null,null,null,null,null,null,null,null,null,null,null,null,null,null,null,null,null,null,null,null,null,null,null,null,null,null,null,null,0]
[{"$f":"IF(     AND(ISNUMBER('Riepilogo Annuale'!O2),YEAR(TODAY())='Riepilogo Annuale'!O2,MONTH(TODAY())=7),     AG9/DAY(TODAY()),     AG9/AF2     )","v":0},null,null,null,null,null,null,null,null,null,null,null,null,null,null,null,null,null,null,null,null,null,null,null,null,null,null,null,null,null,null,null,{"$f":"SUM(AG4:AG8)","v":0}]
[]
[{"$f":"'Riepilogo Annuale'!A11","v":"B1"},null,null,null,null,null,null,null,null,null,null,null,null,null,null,null,null,null,null,null,null,null,null,null,null,null,null,null,null,null,null,null,0]
[{"$f":"'Riepilogo Annuale'!A12","v":"B2"},null,null,null,null,null,null,null,null,null,null,null,null,null,null,null,null,null,null,null,null,null,null,null,null,null,null,null,null,null,null,null,0]
[{"$f":"'Riepilogo Annuale'!A13","v":"B3"},null,null,null,null,null,null,null,null,null,null,null,null,null,null,null,null,null,null,null,null,null,null,null,null,null,null,null,null,null,null,null,0]
[{"$f":"'Riepilogo Annuale'!A14","v":"B4"},null,null,null,null,null,null,null,null,null,null,null,null,null,null,null,null,null,null,null,null,null,null,null,null,null,null,null,null,null,null,null,0]
[{"$f":"'Riepilogo Annuale'!A15","v":"B5"},null,null,null,null,null,null,null,null,null,null,null,null,null,null,null,null,null,null,null,null,null,null,null,null,null,null,null,null,null,null,null,0]
[{"$f":"IF(     AND(ISNUMBER('Riepilogo Annuale'!O2),YEAR(TODAY())='Riepilogo Annuale'!O2,MONTH(TODAY())=7),     AG16/DAY(TODAY()),     AG16/AF2     )","v":0},null,null,null,null,null,null,null,null,null,null,null,null,null,null,null,null,null,null,null,null,null,null,null,null,null,null,null,null,null,null,null,{"$f":"SUM(AG11:AG15)","v":0}]
[]
[{"$f":"'Riepilogo Annuale'!A18","v":"C1"},null,null,null,null,null,null,null,null,null,null,null,null,null,null,null,null,null,null,null,null,null,null,null,null,null,null,null,null,null,null,null,0]
[{"$f":"'Riepilogo Annuale'!A19","v":"C2"},null,null,null,null,null,null,null,null,null,null,null,null,null,null,null,null,null,null,null,null,null,null,null,null,null,null,null,null,null,null,null,0]
[{"$f":"'Riepilogo Annuale'!A20","v":"C3"},null,null,null,null,null,null,null,null,null,null,null,null,null,null,null,null,null,null,null,null,null,null,null,null,null,null,null,null,null,null,null,0]
[{"$f":"'Riepilogo Annuale'!A21","v":"C4"},null,null,null,null,null,null,null,null,null,null,null,null,null,null,null,null,null,null,null,null,null,null,null,null,null,null,null,null,null,null,null,0]
[{"$f":"'Riepilogo Annuale'!A22","v":"C5"},null,null,null,null,null,null,null,null,null,null,null,null,null,null,null,null,null,null,null,null,null,null,null,null,null,null,null,null,null,null,null,0]
[{"$f":"IF(     AND(ISNUMBER('Riepilogo Annuale'!O2),YEAR(TODAY())='Riepilogo Annuale'!O2,MONTH(TODAY())=7),     AG23/DAY(TODAY()),     AG23/AF2     )","v":0},null,null,null,null,null,null,null,null,null,null,null,null,null,null,null,null,null,null,null,null,null,null,null,null,null,null,null,null,null,null,null,{"$f":"SUM(AG18:AG22)","v":0}]
[""]
[{"$f":"'Riepilogo Annuale'!A25","v":"D1"},null,null,null,null,null,null,null,null,null,null,null,null,null,null,null,null,null,null,null,null,null,null,null,null,null,null,null,null,null,null,null,0]
[{"$f":"'Riepilogo Annuale'!A26","v":"D2"},null,null,null,null,null,null,null,null,null,null,null,null,null,null,null,null,null,null,null,null,null,null,null,null,null,null,null,null,null,null,null,0]
[{"$f":"'Riepilogo Annuale'!A27","v":"D3"},null,null,null,null,null,null,null,null,null,null,null,null,null,null,null,null,null,null,null,null,null,null,null,null,null,null,null,null,null,null,null,0]
[{"$f":"'Riepilogo Annuale'!A28","v":"D4"},null,null,null,null,null,null,null,null,null,null,null,null,null,null,null,null,null,null,null,null,null,null,null,null,null,null,null,null,null,null,null,0]
[{"$f":"'Riepilogo Annuale'!A29","v":"D5"},null,null,null,null,null,null,null,null,null,null,null,null,null,null,null,null,null,null,null,null,null,null,null,null,null,null,null,null,null,null,null,0]
[{"$f":"IF(     AND(ISNUMBER('Riepilogo Annuale'!O2),YEAR(TODAY())='Riepilogo Annuale'!O2,MONTH(TODAY())=7),     AG30/DAY(TODAY()),     AG30/AF2     )","v":0},null,null,null,null,null,null,null,null,null,null,null,null,null,null,null,null,null,null,null,null,null,null,null,null,null,null,null,null,null,null,null,{"$f":"SUM(AG25:AG29)","v":0}]
[]
[{"$f":"'Riepilogo Annuale'!A32","v":"E1"},null,null,null,null,null,null,null,null,null,null,null,null,null,null,null,null,null,null,null,null,null,null,null,null,null,null,null,null,null,null,null,0]
[{"$f":"'Riepilogo Annuale'!A33","v":"E2"},null,null,null,null,null,null,null,null,null,null,null,null,null,null,null,null,null,null,null,null,null,null,null,null,null,null,null,null,null,null,null,0]
[{"$f":"'Riepilogo Annuale'!A34","v":"E3"},null,null,null,null,null,null,null,null,null,null,null,null,null,null,null,null,null,null,null,null,null,null,null,null,null,null,null,null,null,null,null,0]
[{"$f":"'Riepilogo Annuale'!A35","v":"E4"},null,null,null,null,null,null,null,null,null,null,null,null,null,null,null,null,null,null,null,null,null,null,null,null,null,null,null,null,null,null,null,0]
[{"$f":"'Riepilogo Annuale'!A36","v":"E5"},null,null,null,null,null,null,null,null,null,null,null,null,null,null,null,null,null,null,null,null,null,null,null,null,null,null,null,null,null,null,null,0]
[{"$f":"IF(     AND(ISNUMBER('Riepilogo Annuale'!O2),YEAR(TODAY())='Riepilogo Annuale'!O2,MONTH(TODAY())=7),     AG37/DAY(TODAY()),     AG37/AF2     )","v":0},null,null,null,null,null,null,null,null,null,null,null,null,null,null,null,null,null,null,null,null,null,null,null,null,null,null,null,null,null,null,null,{"$f":"SUM(AG32:AG36)","v":0}]

{"sheet":"Agosto","index":7,"n_rows":37,"n_cols":33,"rows_kept":37,"cut":false,"hidden":false,"merged":[[36,1,36,31],[37,0,37,32],[0,0,0,32],[2,0,2,32],[9,0,9,32],[16,0,16,32],[30,0,30,32],[23,0,23,32],[8,1,8,31],[15,1,15,31],[22,1,22,31],[29,1,29,31]]}
["AGOSTO"]
[null,1,2,3,4,5,6,7,8,9,10,11,12,13,14,15,16,17,18,19,20,21,22,23,24,25,26,27,28,29,30,31]
[]
[{"$f":"'Riepilogo Annuale'!A4","v":"A1"},null,null,null,null,null,null,null,null,null,null,null,null,null,null,null,null,null,null,null,null,null,null,null,null,null,null,null,null,null,null,null,{"$f":"SUM(B4:AF4)","v":0}]
[{"$f":"'Riepilogo Annuale'!A5","v":"A2"},null,null,null,null,null,null,null,null,null,null,null,null,null,null,null,null,null,null,null,null,null,null,null,null,null,null,null,null,null,null,null,0]
[{"$f":"'Riepilogo Annuale'!A6","v":"A3"},null,null,null,null,null,null,null,null,null,null,null,null,null,null,null,null,null,null,null,null,null,null,null,null,null,null,null,null,null,null,null,0]
[{"$f":"'Riepilogo Annuale'!A7","v":"A4"},null,null,null,null,null,null,null,null,null,null,null,null,null,null,null,null,null,null,null,null,null,null,null,null,null,null,null,null,null,null,null,0]
[{"$f":"'Riepilogo Annuale'!A8","v":"A5"},null,null,null,null,null,null,null,null,null,null,null,null,null,null,null,null,null,null,null,null,null,null,null,null,null,null,null,null,null,null,null,0]
[{"$f":"IF(     AND(ISNUMBER('Riepilogo Annuale'!O2),YEAR(TODAY())='Riepilogo Annuale'!O2,MONTH(TODAY())=8),     AG9/DAY(TODAY()),     AG9/AF2     )","v":0},null,null,null,null,null,null,null,null,null,null,null,null,null,null,null,null,null,null,null,null,null,null,null,null,null,null,null,null,null,null,null,{"$f":"SUM(AG4:AG8)","v":0}]
[]
[{"$f":"'Riepilogo Annuale'!A11","v":"B1"},null,null,null,null,null,null,null,null,null,null,null,null,null,null,null,null,null,null,null,null,null,null,null,null,null,null,null,null,null,null,null,0]
[{"$f":"'Riepilogo Annuale'!A12","v":"B2"},null,null,null,null,null,null,null,null,null,null,null,null,null,null,null,null,null,null,null,null,null,null,null,null,null,null,null,null,null,null,null,0]
[{"$f":"'Riepilogo Annuale'!A13","v":"B3"},null,null,null,null,null,null,null,null,null,null,null,null,null,null,null,null,null,null,null,null,null,null,null,null,null,null,null,null,null,null,null,0]
[{"$f":"'Riepilogo Annuale'!A14","v":"B4"},null,null,null,null,null,null,null,null,null,null,null,null,null,null,null,null,null,null,null,null,null,null,null,null,null,null,null,null,null,null,null,0]
[{"$f":"'Riepilogo Annuale'!A15","v":"B5"},null,null,null,null,null,null,null,null,null,null,null,null,null,null,null,null,null,null,null,null,null,null,null,null,null,null,null,null,null,null,null,0]
[{"$f":"IF(     AND(ISNUMBER('Riepilogo Annuale'!O2),YEAR(TODAY())='Riepilogo Annuale'!O2,MONTH(TODAY())=8),     AG16/DAY(TODAY()),     AG16/AF2     )","v":0},null,null,null,null,null,null,null,null,null,null,null,null,null,null,null,null,null,null,null,null,null,null,null,null,null,null,null,null,null,null,null,{"$f":"SUM(AG11:AG15)","v":0}]
[]
[{"$f":"'Riepilogo Annuale'!A18","v":"C1"},null,null,null,null,null,null,null,null,null,null,null,null,null,null,null,null,null,null,null,null,null,null,null,null,null,null,null,null,null,null,null,0]
[{"$f":"'Riepilogo Annuale'!A19","v":"C2"},null,null,null,null,null,null,null,null,null,null,null,null,null,null,null,null,null,null,null,null,null,null,null,null,null,null,null,null,null,null,null,0]
[{"$f":"'Riepilogo Annuale'!A20","v":"C3"},null,null,null,null,null,null,null,null,null,null,null,null,null,null,null,null,null,null,null,null,null,null,null,null,null,null,null,null,null,null,null,0]
[{"$f":"'Riepilogo Annuale'!A21","v":"C4"},null,null,null,null,null,null,null,null,null,null,null,null,null,null,null,null,null,null,null,null,null,null,null,null,null,null,null,null,null,null,null,0]
[{"$f":"'Riepilogo Annuale'!A22","v":"C5"},null,null,null,null,null,null,null,null,null,null,null,null,null,null,null,null,null,null,null,null,null,null,null,null,null,null,null,null,null,null,null,0]
[{"$f":"IF(     AND(ISNUMBER('Riepilogo Annuale'!O2),YEAR(TODAY())='Riepilogo Annuale'!O2,MONTH(TODAY())=8),     AG23/DAY(TODAY()),     AG23/AF2     )","v":0},null,null,null,null,null,null,null,null,null,null,null,null,null,null,null,null,null,null,null,null,null,null,null,null,null,null,null,null,null,null,null,{"$f":"SUM(AG18:AG22)","v":0}]
[""]
[{"$f":"'Riepilogo Annuale'!A25","v":"D1"},null,null,null,null,null,null,null,null,null,null,null,null,null,null,null,null,null,null,null,null,null,null,null,null,null,null,null,null,null,null,null,0]
[{"$f":"'Riepilogo Annuale'!A26","v":"D2"},null,null,null,null,null,null,null,null,null,null,null,null,null,null,null,null,null,null,null,null,null,null,null,null,null,null,null,null,null,null,null,0]
[{"$f":"'Riepilogo Annuale'!A27","v":"D3"},null,null,null,null,null,null,null,null,null,null,null,null,null,null,null,null,null,null,null,null,null,null,null,null,null,null,null,null,null,null,null,0]
[{"$f":"'Riepilogo Annuale'!A28","v":"D4"},null,null,null,null,null,null,null,null,null,null,null,null,null,null,null,null,null,null,null,null,null,null,null,null,null,null,null,null,null,null,null,0]
[{"$f":"'Riepilogo Annuale'!A29","v":"D5"},null,null,null,null,null,null,null,null,null,null,null,null,null,null,null,null,null,null,null,null,null,null,null,null,null,null,null,null,null,null,null,0]
[{"$f":"IF(     AND(ISNUMBER('Riepilogo Annuale'!O2),YEAR(TODAY())='Riepilogo Annuale'!O2,MONTH(TODAY())=8),     AG30/DAY(TODAY()),     AG30/AF2     )","v":0},null,null,null,null,null,null,null,null,null,null,null,null,null,null,null,null,null,null,null,null,null,null,null,null,null,null,null,null,null,null,null,{"$f":"SUM(AG25:AG29)","v":0}]
[]
[{"$f":"'Riepilogo Annuale'!A32","v":"E1"},null,null,null,null,null,null,null,null,null,null,null,null,null,null,null,null,null,null,null,null,null,null,null,null,null,null,null,null,null,null,null,0]
[{"$f":"'Riepilogo Annuale'!A33","v":"E2"},null,null,null,null,null,null,null,null,null,null,null,null,null,null,null,null,null,null,null,null,null,null,null,null,null,null,null,null,null,null,null,0]
[{"$f":"'Riepilogo Annuale'!A34","v":"E3"},null,null,null,null,null,null,null,null,null,null,null,null,null,null,null,null,null,null,null,null,null,null,null,null,null,null,null,null,null,null,null,0]
[{"$f":"'Riepilogo Annuale'!A35","v":"E4"},null,null,null,null,null,null,null,null,null,null,null,null,null,null,null,null,null,null,null,null,null,null,null,null,null,null,null,null,null,null,null,0]
[{"$f":"'Riepilogo Annuale'!A36","v":"E5"},null,null,null,null,null,null,null,null,null,null,null,null,null,null,null,null,null,null,null,null,null,null,null,null,null,null,null,null,null,null,null,0]
[{"$f":"IF(     AND(ISNUMBER('Riepilogo Annuale'!O2),YEAR(TODAY())='Riepilogo Annuale'!O2,MONTH(TODAY())=8),     AG37/DAY(TODAY()),     AG37/AF2     )","v":0},null,null,null,null,null,null,null,null,null,null,null,null,null,null,null,null,null,null,null,null,null,null,null,null,null,null,null,null,null,null,null,{"$f":"SUM(AG32:AG36)","v":0}]

{"sheet":"Settembre","index":8,"n_rows":37,"n_cols":33,"rows_kept":37,"cut":false,"hidden":false,"merged":[[36,1,36,31],[37,0,37,32],[0,0,0,32],[2,0,2,32],[9,0,9,32],[16,0,16,32],[30,0,30,32],[23,0,23,32],[8,1,8,31],[15,1,15,31],[22,1,22,31],[29,1,29,31]]}
["SETTEMBRE"]
[null,1,2,3,4,5,6,7,8,9,10,11,12,13,14,15,16,17,18,19,20,21,22,23,24,25,26,27,28,29,30]
[]
[{"$f":"'Riepilogo Annuale'!A4","v":"A1"},null,null,null,null,null,null,null,null,null,null,null,null,null,null,null,null,null,null,null,null,null,null,null,null,null,null,null,null,null,null,null,{"$f":"SUM(B4:AF4)","v":0}]
[{"$f":"'Riepilogo Annuale'!A5","v":"A2"},null,null,null,null,null,null,null,null,null,null,null,null,null,null,null,null,null,null,null,null,null,null,null,null,null,null,null,null,null,null,null,0]
[{"$f":"'Riepilogo Annuale'!A6","v":"A3"},null,null,null,null,null,null,null,null,null,null,null,null,null,null,null,null,null,null,null,null,null,null,null,null,null,null,null,null,null,null,null,0]
[{"$f":"'Riepilogo Annuale'!A7","v":"A4"},null,null,null,null,null,null,null,null,null,null,null,null,null,null,null,null,null,null,null,null,null,null,null,null,null,null,null,null,null,null,null,0]
[{"$f":"'Riepilogo Annuale'!A8","v":"A5"},null,null,null,null,null,null,null,null,null,null,null,null,null,null,null,null,null,null,null,null,null,null,null,null,null,null,null,null,null,null,null,0]
[{"$f":"IF(     AND(ISNUMBER('Riepilogo Annuale'!O2),YEAR(TODAY())='Riepilogo Annuale'!O2,MONTH(TODAY())=9),     AG9/DAY(TODAY()),     AG9/AE2     )","v":0},null,null,null,null,null,null,null,null,null,null,null,null,null,null,null,null,null,null,null,null,null,null,null,null,null,null,null,null,null,null,null,{"$f":"SUM(AG4:AG8)","v":0}]
[]
[{"$f":"'Riepilogo Annuale'!A11","v":"B1"},null,null,null,null,null,null,null,null,null,null,null,null,null,null,null,null,null,null,null,null,null,null,null,null,null,null,null,null,null,null,null,0]
[{"$f":"'Riepilogo Annuale'!A12","v":"B2"},null,null,null,null,null,null,null,null,null,null,null,null,null,null,null,null,null,null,null,null,null,null,null,null,null,null,null,null,null,null,null,0]
[{"$f":"'Riepilogo Annuale'!A13","v":"B3"},null,null,null,null,null,null,null,null,null,null,null,null,null,null,null,null,null,null,null,null,null,null,null,null,null,null,null,null,null,null,null,0]
[{"$f":"'Riepilogo Annuale'!A14","v":"B4"},null,null,null,null,null,null,null,null,null,null,null,null,null,null,null,null,null,null,null,null,null,null,null,null,null,null,null,null,null,null,null,0]
[{"$f":"'Riepilogo Annuale'!A15","v":"B5"},null,null,null,null,null,null,null,null,null,null,null,null,null,null,null,null,null,null,null,null,null,null,null,null,null,null,null,null,null,null,null,0]
[{"$f":"IF(     AND(ISNUMBER('Riepilogo Annuale'!O2),YEAR(TODAY())='Riepilogo Annuale'!O2,MONTH(TODAY())=9),     AG16/DAY(TODAY()),     AG16/AE2     )","v":0},null,null,null,null,null,null,null,null,null,null,null,null,null,null,null,null,null,null,null,null,null,null,null,null,null,null,null,null,null,null,null,{"$f":"SUM(AG11:AG15)","v":0}]
[]
[{"$f":"'Riepilogo Annuale'!A18","v":"C1"},null,null,null,null,null,null,null,null,null,null,null,null,null,null,null,null,null,null,null,null,null,null,null,null,null,null,null,null,null,null,null,0]
[{"$f":"'Riepilogo Annuale'!A19","v":"C2"},null,null,null,null,null,null,null,null,null,null,null,null,null,null,null,null,null,null,null,null,null,null,null,null,null,null,null,null,null,null,null,0]
[{"$f":"'Riepilogo Annuale'!A20","v":"C3"},null,null,null,null,null,null,null,null,null,null,null,null,null,null,null,null,null,null,null,null,null,null,null,null,null,null,null,null,null,null,null,0]
[{"$f":"'Riepilogo Annuale'!A21","v":"C4"},null,null,null,null,null,null,null,null,null,null,null,null,null,null,null,null,null,null,null,null,null,null,null,null,null,null,null,null,null,null,null,0]
[{"$f":"'Riepilogo Annuale'!A22","v":"C5"},null,null,null,null,null,null,null,null,null,null,null,null,null,null,null,null,null,null,null,null,null,null,null,null,null,null,null,null,null,null,null,0]
[{"$f":"IF(     AND(ISNUMBER('Riepilogo Annuale'!O2),YEAR(TODAY())='Riepilogo Annuale'!O2,MONTH(TODAY())=9),     AG23/DAY(TODAY()),     AG23/AE2     )","v":0},null,null,null,null,null,null,null,null,null,null,null,null,null,null,null,null,null,null,null,null,null,null,null,null,null,null,null,null,null,null,null,{"$f":"SUM(AG18:AG22)","v":0}]
[""]
[{"$f":"'Riepilogo Annuale'!A25","v":"D1"},null,null,null,null,null,null,null,null,null,null,null,null,null,null,null,null,null,null,null,null,null,null,null,null,null,null,null,null,null,null,null,0]
[{"$f":"'Riepilogo Annuale'!A26","v":"D2"},null,null,null,null,null,null,null,null,null,null,null,null,null,null,null,null,null,null,null,null,null,null,null,null,null,null,null,null,null,null,null,0]
[{"$f":"'Riepilogo Annuale'!A27","v":"D3"},null,null,null,null,null,null,null,null,null,null,null,null,null,null,null,null,null,null,null,null,null,null,null,null,null,null,null,null,null,null,null,0]
[{"$f":"'Riepilogo Annuale'!A28","v":"D4"},null,null,null,null,null,null,null,null,null,null,null,null,null,null,null,null,null,null,null,null,null,null,null,null,null,null,null,null,null,null,null,0]
[{"$f":"'Riepilogo Annuale'!A29","v":"D5"},null,null,null,null,null,null,null,null,null,null,null,null,null,null,null,null,null,null,null,null,null,null,null,null,null,null,null,null,null,null,null,0]
[{"$f":"IF(     AND(ISNUMBER('Riepilogo Annuale'!O2),YEAR(TODAY())='Riepilogo Annuale'!O2,MONTH(TODAY())=9),     AG30/DAY(TODAY()),     AG30/AE2     )","v":0},null,null,null,null,null,null,null,null,null,null,null,null,null,null,null,null,null,null,null,null,null,null,null,null,null,null,null,null,null,null,null,{"$f":"SUM(AG25:AG29)","v":0}]
[]
[{"$f":"'Riepilogo Annuale'!A32","v":"E1"},null,null,null,null,null,null,null,null,null,null,null,null,null,null,null,null,null,null,null,null,null,null,null,null,null,null,null,null,null,null,null,0]
[{"$f":"'Riepilogo Annuale'!A33","v":"E2"},null,null,null,null,null,null,null,null,null,null,null,null,null,null,null,null,null,null,null,null,null,null,null,null,null,null,null,null,null,null,null,0]
[{"$f":"'Riepilogo Annuale'!A34","v":"E3"},null,null,null,null,null,null,null,null,null,null,null,null,null,null,null,null,null,null,null,null,null,null,null,null,null,null,null,null,null,null,null,0]
[{"$f":"'Riepilogo Annuale'!A35","v":"E4"},null,null,null,null,null,null,null,null,null,null,null,null,null,null,null,null,null,null,null,null,null,null,null,null,null,null,null,null,null,null,null,0]
[{"$f":"'Riepilogo Annuale'!A36","v":"E5"},null,null,null,null,null,null,null,null,null,null,null,null,null,null,null,null,null,null,null,null,null,null,null,null,null,null,null,null,null,null,null,0]
[{"$f":"IF(     AND(ISNUMBER('Riepilogo Annuale'!O2),YEAR(TODAY())='Riepilogo Annuale'!O2,MONTH(TODAY())=9),     AG37/DAY(TODAY()),     AG37/AE2     )","v":0},null,null,null,null,null,null,null,null,null,null,null,null,null,null,null,null,null,null,null,null,null,null,null,null,null,null,null,null,null,null,null,{"$f":"SUM(AG32:AG36)","v":0}]

{"sheet":"Ottobre","index":9,"n_rows":37,"n_cols":33,"rows_kept":37,"cut":false,"hidden":false,"merged":[[36,1,36,31],[37,0,37,32],[0,0,0,32],[2,0,2,32],[9,0,9,32],[16,0,16,32],[30,0,30,32],[23,0,23,32],[8,1,8,31],[15,1,15,31],[22,1,22,31],[29,1,29,31]]}
["OTTOBRE"]
[null,1,2,3,4,5,6,7,8,9,10,11,12,13,14,15,16,17,18,19,20,21,22,23,24,25,26,27,28,29,30,31]
[]
[{"$f":"'Riepilogo Annuale'!A4","v":"A1"},null,null,null,null,null,null,null,null,null,null,null,null,null,null,null,null,null,null,null,null,null,null,null,null,null,null,null,null,null,null,null,{"$f":"SUM(B4:AF4)","v":0}]
[{"$f":"'Riepilogo Annuale'!A5","v":"A2"},null,null,null,null,null,null,null,null,null,null,null,null,null,null,null,null,null,null,null,null,null,null,null,null,null,null,null,null,null,null,null,0]
[{"$f":"'Riepilogo Annuale'!A6","v":"A3"},null,null,null,null,null,null,null,null,null,null,null,null,null,null,null,null,null,null,null,null,null,null,null,null,null,null,null,null,null,null,null,0]
[{"$f":"'Riepilogo Annuale'!A7","v":"A4"},null,null,null,null,null,null,null,null,null,null,null,null,null,null,null,null,null,null,null,null,null,null,null,null,null,null,null,null,null,null,null,0]
[{"$f":"'Riepilogo Annuale'!A8","v":"A5"},null,null,null,null,null,null,null,null,null,null,null,null,null,null,null,null,null,null,null,null,null,null,null,null,null,null,null,null,null,null,null,0]
[{"$f":"IF(     AND(ISNUMBER('Riepilogo Annuale'!O2),YEAR(TODAY())='Riepilogo Annuale'!O2,MONTH(TODAY())=10),     AG9/DAY(TODAY()),     AG9/AF2     )","v":0},null,null,null,null,null,null,null,null,null,null,null,null,null,null,null,null,null,null,null,null,null,null,null,null,null,null,null,null,null,null,null,{"$f":"SUM(AG4:AG8)","v":0}]
[]
[{"$f":"'Riepilogo Annuale'!A11","v":"B1"},null,null,null,null,null,null,null,null,null,null,null,null,null,null,null,null,null,null,null,null,null,null,null,null,null,null,null,null,null,null,null,0]
[{"$f":"'Riepilogo Annuale'!A12","v":"B2"},null,null,null,null,null,null,null,null,null,null,null,null,null,null,null,null,null,null,null,null,null,null,null,null,null,null,null,null,null,null,null,0]
[{"$f":"'Riepilogo Annuale'!A13","v":"B3"},null,null,null,null,null,null,null,null,null,null,null,null,null,null,null,null,null,null,null,null,null,null,null,null,null,null,null,null,null,null,null,0]
[{"$f":"'Riepilogo Annuale'!A14","v":"B4"},null,null,null,null,null,null,null,null,null,null,null,null,null,null,null,null,null,null,null,null,null,null,null,null,null,null,null,null,null,null,null,0]
[{"$f":"'Riepilogo Annuale'!A15","v":"B5"},null,null,null,null,null,null,null,null,null,null,null,null,null,null,null,null,null,null,null,null,null,null,null,null,null,null,null,null,null,null,null,0]
[{"$f":"IF(     AND(ISNUMBER('Riepilogo Annuale'!O2),YEAR(TODAY())='Riepilogo Annuale'!O2,MONTH(TODAY())=10),     AG16/DAY(TODAY()),     AG16/AF2     )","v":0},null,null,null,null,null,null,null,null,null,null,null,null,null,null,null,null,null,null,null,null,null,null,null,null,null,null,null,null,null,null,null,{"$f":"SUM(AG11:AG15)","v":0}]
[]
[{"$f":"'Riepilogo Annuale'!A18","v":"C1"},null,null,null,null,null,null,null,null,null,null,null,null,null,null,null,null,null,null,null,null,null,null,null,null,null,null,null,null,null,null,null,0]
[{"$f":"'Riepilogo Annuale'!A19","v":"C2"},null,null,null,null,null,null,null,null,null,null,null,null,null,null,null,null,null,null,null,null,null,null,null,null,null,null,null,null,null,null,null,0]
[{"$f":"'Riepilogo Annuale'!A20","v":"C3"},null,null,null,null,null,null,null,null,null,null,null,null,null,null,null,null,null,null,null,null,null,null,null,null,null,null,null,null,null,null,null,0]
[{"$f":"'Riepilogo Annuale'!A21","v":"C4"},null,null,null,null,null,null,null,null,null,null,null,null,null,null,null,null,null,null,null,null,null,null,null,null,null,null,null,null,null,null,null,0]
[{"$f":"'Riepilogo Annuale'!A22","v":"C5"},null,null,null,null,null,null,null,null,null,null,null,null,null,null,null,null,null,null,null,null,null,null,null,null,null,null,null,null,null,null,null,0]
[{"$f":"IF(     AND(ISNUMBER('Riepilogo Annuale'!O2),YEAR(TODAY())='Riepilogo Annuale'!O2,MONTH(TODAY())=10),     AG23/DAY(TODAY()),     AG23/AF2     )","v":0},null,null,null,null,null,null,null,null,null,null,null,null,null,null,null,null,null,null,null,null,null,null,null,null,null,null,null,null,null,null,null,{"$f":"SUM(AG18:AG22)","v":0}]
[""]
[{"$f":"'Riepilogo Annuale'!A25","v":"D1"},null,null,null,null,null,null,null,null,null,null,null,null,null,null,null,null,null,null,null,null,null,null,null,null,null,null,null,null,null,null,null,0]
[{"$f":"'Riepilogo Annuale'!A26","v":"D2"},null,null,null,null,null,null,null,null,null,null,null,null,null,null,null,null,null,null,null,null,null,null,null,null,null,null,null,null,null,null,null,0]
[{"$f":"'Riepilogo Annuale'!A27","v":"D3"},null,null,null,null,null,null,null,null,null,null,null,null,null,null,null,null,null,null,null,null,null,null,null,null,null,null,null,null,null,null,null,0]
[{"$f":"'Riepilogo Annuale'!A28","v":"D4"},null,null,null,null,null,null,null,null,null,null,null,null,null,null,null,null,null,null,null,null,null,null,null,null,null,null,null,null,null,null,null,0]
[{"$f":"'Riepilogo Annuale'!A29","v":"D5"},null,null,null,null,null,null,null,null,null,null,null,null,null,null,null,null,null,null,null,null,null,null,null,null,null,null,null,null,null,null,null,0]
[{"$f":"IF(     AND(ISNUMBER('Riepilogo Annuale'!O2),YEAR(TODAY())='Riepilogo Annuale'!O2,MONTH(TODAY())=10),     AG30/DAY(TODAY()),     AG30/AF2     )","v":0},null,null,null,null,null,null,null,null,null,null,null,null,null,null,null,null,null,null,null,null,null,null,null,null,null,null,null,null,null,null,null,{"$f":"SUM(AG25:AG29)","v":0}]
[]
[{"$f":"'Riepilogo Annuale'!A32","v":"E1"},null,null,null,null,null,null,null,null,null,null,null,null,null,null,null,null,null,null,null,null,null,null,null,null,null,null,null,null,null,null,null,0]
[{"$f":"'Riepilogo Annuale'!A33","v":"E2"},null,null,null,null,null,null,null,null,null,null,null,null,null,null,null,null,null,null,null,null,null,null,null,null,null,null,null,null,null,null,null,0]
[{"$f":"'Riepilogo Annuale'!A34","v":"E3"},null,null,null,null,null,null,null,null,null,null,null,null,null,null,null,null,null,null,null,null,null,null,null,null,null,null,null,null,null,null,null,0]
[{"$f":"'Riepilogo Annuale'!A35","v":"E4"},null,null,null,null,null,null,null,null,null,null,null,null,null,null,null,null,null,null,null,null,null,null,null,null,null,null,null,null,null,null,null,0]
[{"$f":"'Riepilogo Annuale'!A36","v":"E5"},null,null,null,null,null,null,null,null,null,null,null,null,null,null,null,null,null,null,null,null,null,null,null,null,null,null,null,null,null,null,null,0]
[{"$f":"IF(     AND(ISNUMBER('Riepilogo Annuale'!O2),YEAR(TODAY())='Riepilogo Annuale'!O2,MONTH(TODAY())=10),     AG37/DAY(TODAY()),     AG37/AF2     )","v":0},null,null,null,null,null,null,null,null,null,null,null,null,null,null,null,null,null,null,null,null,null,null,null,null,null,null,null,null,null,null,null,{"$f":"SUM(AG32:AG36)","v":0}]

{"sheet":"Novembre","index":10,"n_rows":37,"n_cols":33,"rows_kept":37,"cut":false,"hidden":false,"merged":[[36,1,36,31],[37,0,37,32],[0,0,0,32],[2,0,2,32],[9,0,9,32],[16,0,16,32],[30,0,30,32],[23,0,23,32],[8,1,8,31],[15,1,15,31],[22,1,22,31],[29,1,29,31]]}
["NOVEMBRE"]
[null,1,2,3,4,5,6,7,8,9,10,11,12,13,14,15,16,17,18,19,20,21,22,23,24,25,26,27,28,29,30]
[]
[{"$f":"'Riepilogo Annuale'!A4","v":"A1"},null,null,null,null,null,null,null,null,null,null,null,null,null,null,null,null,null,null,null,null,null,null,null,null,null,null,null,null,null,null,null,{"$f":"SUM(B4:AF4)","v":0}]
[{"$f":"'Riepilogo Annuale'!A5","v":"A2"},null,null,null,null,null,null,null,null,null,null,null,null,null,null,null,null,null,null,null,null,null,null,null,null,null,null,null,null,null,null,null,0]
[{"$f":"'Riepilogo Annuale'!A6","v":"A3"},null,null,null,null,null,null,null,null,null,null,null,null,null,null,null,null,null,null,null,null,null,null,null,null,null,null,null,null,null,null,null,0]
[{"$f":"'Riepilogo Annuale'!A7","v":"A4"},null,null,null,null,null,null,null,null,null,null,null,null,null,null,null,null,null,null,null,null,null,null,null,null,null,null,null,null,null,null,null,0]
[{"$f":"'Riepilogo Annuale'!A8","v":"A5"},null,null,null,null,null,null,null,null,null,null,null,null,null,null,null,null,null,null,null,null,null,null,null,null,null,null,null,null,null,null,null,0]
[{"$f":"IF(     AND(ISNUMBER('Riepilogo Annuale'!O2),YEAR(TODAY())='Riepilogo Annuale'!O2,MONTH(TODAY())=11),     AG9/DAY(TODAY()),     AG9/AE2     )","v":0},null,null,null,null,null,null,null,null,null,null,null,null,null,null,null,null,null,null,null,null,null,null,null,null,null,null,null,null,null,null,null,{"$f":"SUM(AG4:AG8)","v":0}]
[]
[{"$f":"'Riepilogo Annuale'!A11","v":"B1"},null,null,null,null,null,null,null,null,null,null,null,null,null,null,null,null,null,null,null,null,null,null,null,null,null,null,null,null,null,null,null,0]
[{"$f":"'Riepilogo Annuale'!A12","v":"B2"},null,null,null,null,null,null,null,null,null,null,null,null,null,null,null,null,null,null,null,null,null,null,null,null,null,null,null,null,null,null,null,0]
[{"$f":"'Riepilogo Annuale'!A13","v":"B3"},null,null,null,null,null,null,null,null,null,null,null,null,null,null,null,null,null,null,null,null,null,null,null,null,null,null,null,null,null,null,null,0]
[{"$f":"'Riepilogo Annuale'!A14","v":"B4"},null,null,null,null,null,null,null,null,null,null,null,null,null,null,null,null,null,null,null,null,null,null,null,null,null,null,null,null,null,null,null,0]
[{"$f":"'Riepilogo Annuale'!A15","v":"B5"},null,null,null,null,null,null,null,null,null,null,null,null,null,null,null,null,null,null,null,null,null,null,null,null,null,null,null,null,null,null,null,0]
[{"$f":"IF(     AND(ISNUMBER('Riepilogo Annuale'!O2),YEAR(TODAY())='Riepilogo Annuale'!O2,MONTH(TODAY())=11),     AG16/DAY(TODAY()),     AG16/AE2     )","v":0},null,null,null,null,null,null,null,null,null,null,null,null,null,null,null,null,null,null,null,null,null,null,null,null,null,null,null,null,null,null,null,{"$f":"SUM(AG11:AG15)","v":0}]
[]
[{"$f":"'Riepilogo Annuale'!A18","v":"C1"},null,null,null,null,null,null,null,null,null,null,null,null,null,null,null,null,null,null,null,null,null,null,null,null,null,null,null,null,null,null,null,0]
[{"$f":"'Riepilogo Annuale'!A19","v":"C2"},null,null,null,null,null,null,null,null,null,null,null,null,null,null,null,null,null,null,null,null,null,null,null,null,null,null,null,null,null,null,null,0]
[{"$f":"'Riepilogo Annuale'!A20","v":"C3"},null,null,null,null,null,null,null,null,null,null,null,null,null,null,null,null,null,null,null,null,null,null,null,null,null,null,null,null,null,null,null,0]
[{"$f":"'Riepilogo Annuale'!A21","v":"C4"},null,null,null,null,null,null,null,null,null,null,null,null,null,null,null,null,null,null,null,null,null,null,null,null,null,null,null,null,null,null,null,0]
[{"$f":"'Riepilogo Annuale'!A22","v":"C5"},null,null,null,null,null,null,null,null,null,null,null,null,null,null,null,null,null,null,null,null,null,null,null,null,null,null,null,null,null,null,null,0]
[{"$f":"IF(     AND(ISNUMBER('Riepilogo Annuale'!O2),YEAR(TODAY())='Riepilogo Annuale'!O2,MONTH(TODAY())=11),     AG23/DAY(TODAY()),     AG23/AE2     )","v":0},null,null,null,null,null,null,null,null,null,null,null,null,null,null,null,null,null,null,null,null,null,null,null,null,null,null,null,null,null,null,null,{"$f":"SUM(AG18:AG22)","v":0}]
[""]
[{"$f":"'Riepilogo Annuale'!A25","v":"D1"},null,null,null,null,null,null,null,null,null,null,null,null,null,null,null,null,null,null,null,null,null,null,null,null,null,null,null,null,null,null,null,0]
[{"$f":"'Riepilogo Annuale'!A26","v":"D2"},null,null,null,null,null,null,null,null,null,null,null,null,null,null,null,null,null,null,null,null,null,null,null,null,null,null,null,null,null,null,null,0]
[{"$f":"'Riepilogo Annuale'!A27","v":"D3"},null,null,null,null,null,null,null,null,null,null,null,null,null,null,null,null,null,null,null,null,null,null,null,null,null,null,null,null,null,null,null,0]
[{"$f":"'Riepilogo Annuale'!A28","v":"D4"},null,null,null,null,null,null,null,null,null,null,null,null,null,null,null,null,null,null,null,null,null,null,null,null,null,null,null,null,null,null,null,0]
[{"$f":"'Riepilogo Annuale'!A29","v":"D5"},null,null,null,null,null,null,null,null,null,null,null,null,null,null,null,null,null,null,null,null,null,null,null,null,null,null,null,null,null,null,null,0]
[{"$f":"IF(     AND(ISNUMBER('Riepilogo Annuale'!O2),YEAR(TODAY())='Riepilogo Annuale'!O2,MONTH(TODAY())=11),     AG30/DAY(TODAY()),     AG30/AE2     )","v":0},null,null,null,null,null,null,null,null,null,null,null,null,null,null,null,null,null,null,null,null,null,null,null,null,null,null,null,null,null,null,null,{"$f":"SUM(AG25:AG29)","v":0}]
[]
[{"$f":"'Riepilogo Annuale'!A32","v":"E1"},null,null,null,null,null,null,null,null,null,null,null,null,null,null,null,null,null,null,null,null,null,null,null,null,null,null,null,null,null,null,null,0]
[{"$f":"'Riepilogo Annuale'!A33","v":"E2"},null,null,null,null,null,null,null,null,null,null,null,null,null,null,null,null,null,null,null,null,null,null,null,null,null,null,null,null,null,null,null,0]
[{"$f":"'Riepilogo Annuale'!A34","v":"E3"},null,null,null,null,null,null,null,null,null,null,null,null,null,null,null,null,null,null,null,null,null,null,null,null,null,null,null,null,null,null,null,0]
[{"$f":"'Riepilogo Annuale'!A35","v":"E4"},null,null,null,null,null,null,null,null,null,null,null,null,null,null,null,null,null,null,null,null,null,null,null,null,null,null,null,null,null,null,null,0]
[{"$f":"'Riepilogo Annuale'!A36","v":"E5"},null,null,null,null,null,null,null,null,null,null,null,null,null,null,null,null,null,null,null,null,null,null,null,null,null,null,null,null,null,null,null,0]
[{"$f":"IF(     AND(ISNUMBER('Riepilogo Annuale'!O2),YEAR(TODAY())='Riepilogo Annuale'!O2,MONTH(TODAY())=11),     AG37/DAY(TODAY()),     AG37/AE2     )","v":0},null,null,null,null,null,null,null,null,null,null,null,null,null,null,null,null,null,null,null,null,null,null,null,null,null,null,null,null,null,null,null,{"$f":"SUM(AG32:AG36)","v":0}]

{"sheet":"Dicembre","index":11,"n_rows":37,"n_cols":33,"rows_kept":37,"cut":false,"hidden":false,"merged":[[36,1,36,31],[37,0,37,32],[0,0,0,32],[2,0,2,32],[9,0,9,32],[16,0,16,32],[30,0,30,32],[23,0,23,32],[8,1,8,31],[15,1,15,31],[22,1,22,31],[29,1,29,31]]}
["DICEMBRE"]
[null,1,2,3,4,5,6,7,8,9,10,11,12,13,14,15,16,17,18,19,20,21,22,23,24,25,26,27,28,29,30,31]
[]
[{"$f":"'Riepilogo Annuale'!A4","v":"A1"},null,null,null,null,null,null,null,null,null,null,null,null,null,null,null,null,null,null,null,null,null,null,null,null,null,null,null,null,null,null,null,{"$f":"SUM(B4:AF4)","v":0}]
[{"$f":"'Riepilogo Annuale'!A5","v":"A2"},null,null,null,null,null,null,null,null,null,null,null,null,null,null,null,null,null,null,null,null,null,null,null,null,null,null,null,null,null,null,null,0]
[{"$f":"'Riepilogo Annuale'!A6","v":"A3"},null,null,null,null,null,null,null,null,null,null,null,null,null,null,null,null,null,null,null,null,null,null,null,null,null,null,null,null,null,null,null,0]
[{"$f":"'Riepilogo Annuale'!A7","v":"A4"},null,null,null,null,null,null,null,null,null,null,null,null,null,null,null,null,null,null,null,null,null,null,null,null,null,null,null,null,null,null,null,0]
[{"$f":"'Riepilogo Annuale'!A8","v":"A5"},null,null,null,null,null,null,null,null,null,null,null,null,null,null,null,null,null,null,null,null,null,null,null,null,null,null,null,null,null,null,null,0]
[{"$f":"IF(     AND(ISNUMBER('Riepilogo Annuale'!O2),YEAR(TODAY())='Riepilogo Annuale'!O2,MONTH(TODAY())=12),     AG9/DAY(TODAY()),     AG9/AF2     )","v":0},null,null,null,null,null,null,null,null,null,null,null,null,null,null,null,null,null,null,null,null,null,null,null,null,null,null,null,null,null,null,null,{"$f":"SUM(AG4:AG8)","v":0}]
[]
[{"$f":"'Riepilogo Annuale'!A11","v":"B1"},null,null,null,null,null,null,null,null,null,null,null,null,null,null,null,null,null,null,null,null,null,null,null,null,null,null,null,null,null,null,null,0]
[{"$f":"'Riepilogo Annuale'!A12","v":"B2"},null,null,null,null,null,null,null,null,null,null,null,null,null,null,null,null,null,null,null,null,null,null,null,null,null,null,null,null,null,null,null,0]
[{"$f":"'Riepilogo Annuale'!A13","v":"B3"},null,null,null,null,null,null,null,null,null,null,null,null,null,null,null,null,null,null,null,null,null,null,null,null,null,null,null,null,null,null,null,0]
[{"$f":"'Riepilogo Annuale'!A14","v":"B4"},null,null,null,null,null,null,null,null,null,null,null,null,null,null,null,null,null,null,null,null,null,null,null,null,null,null,null,null,null,null,null,0]
[{"$f":"'Riepilogo Annuale'!A15","v":"B5"},null,null,null,null,null,null,null,null,null,null,null,null,null,null,null,null,null,null,null,null,null,null,null,null,null,null,null,null,null,null,null,0]
[{"$f":"IF(     AND(ISNUMBER('Riepilogo Annuale'!O2),YEAR(TODAY())='Riepilogo Annuale'!O2,MONTH(TODAY())=12),     AG16/DAY(TODAY()),     AG16/AF2     )","v":0},null,null,null,null,null,null,null,null,null,null,null,null,null,null,null,null,null,null,null,null,null,null,null,null,null,null,null,null,null,null,null,{"$f":"SUM(AG11:AG15)","v":0}]
[]
[{"$f":"'Riepilogo Annuale'!A18","v":"C1"},null,null,null,null,null,null,null,null,null,null,null,null,null,null,null,null,null,null,null,null,null,null,null,null,null,null,null,null,null,null,null,0]
[{"$f":"'Riepilogo Annuale'!A19","v":"C2"},null,null,null,null,null,null,null,null,null,null,null,null,null,null,null,null,null,null,null,null,null,null,null,null,null,null,null,null,null,null,null,0]
[{"$f":"'Riepilogo Annuale'!A20","v":"C3"},null,null,null,null,null,null,null,null,null,null,null,null,null,null,null,null,null,null,null,null,null,null,null,null,null,null,null,null,null,null,null,0]
[{"$f":"'Riepilogo Annuale'!A21","v":"C4"},null,null,null,null,null,null,null,null,null,null,null,null,null,null,null,null,null,null,null,null,null,null,null,null,null,null,null,null,null,null,null,0]
[{"$f":"'Riepilogo Annuale'!A22","v":"C5"},null,null,null,null,null,null,null,null,null,null,null,null,null,null,null,null,null,null,null,null,null,null,null,null,null,null,null,null,null,null,null,0]
[{"$f":"IF(     AND(ISNUMBER('Riepilogo Annuale'!O2),YEAR(TODAY())='Riepilogo Annuale'!O2,MONTH(TODAY())=12),     AG23/DAY(TODAY()),     AG23/AF2     )","v":0},null,null,null,null,null,null,null,null,null,null,null,null,null,null,null,null,null,null,null,null,null,null,null,null,null,null,null,null,null,null,null,{"$f":"SUM(AG18:AG22)","v":0}]
[""]
[{"$f":"'Riepilogo Annuale'!A25","v":"D1"},null,null,null,null,null,null,null,null,null,null,null,null,null,null,null,null,null,null,null,null,null,null,null,null,null,null,null,null,null,null,null,0]
[{"$f":"'Riepilogo Annuale'!A26","v":"D2"},null,null,null,null,null,null,null,null,null,null,null,null,null,null,null,null,null,null,null,null,null,null,null,null,null,null,null,null,null,null,null,0]
[{"$f":"'Riepilogo Annuale'!A27","v":"D3"},null,null,null,null,null,null,null,null,null,null,null,null,null,null,null,null,null,null,null,null,null,null,null,null,null,null,null,null,null,null,null,0]
[{"$f":"'Riepilogo Annuale'!A28","v":"D4"},null,null,null,null,null,null,null,null,null,null,null,null,null,null,null,null,null,null,null,null,null,null,null,null,null,null,null,null,null,null,null,0]
[{"$f":"'Riepilogo Annuale'!A29","v":"D5"},null,null,null,null,null,null,null,null,null,null,null,null,null,null,null,null,null,null,null,null,null,null,null,null,null,null,null,null,null,null,null,0]
[{"$f":"IF(     AND(ISNUMBER('Riepilogo Annuale'!O2),YEAR(TODAY())='Riepilogo Annuale'!O2,MONTH(TODAY())=12),     AG30/DAY(TODAY()),     AG30/AF2     )","v":0},null,null,null,null,null,null,null,null,null,null,null,null,null,null,null,null,null,null,null,null,null,null,null,null,null,null,null,null,null,null,null,{"$f":"SUM(AG25:AG29)","v":0}]
[]
[{"$f":"'Riepilogo Annuale'!A32","v":"E1"},null,null,null,null,null,null,null,null,null,null,null,null,null,null,null,null,null,null,null,null,null,null,null,null,null,null,null,null,null,null,null,0]
[{"$f":"'Riepilogo Annuale'!A33","v":"E2"},null,null,null,null,null,null,null,null,null,null,null,null,null,null,null,null,null,null,null,null,null,null,null,null,null,null,null,null,null,null,null,0]
[{"$f":"'Riepilogo Annuale'!A34","v":"E3"},null,null,null,null,null,null,null,null,null,null,null,null,null,null,null,null,null,null,null,null,null,null,null,null,null,null,null,null,null,null,null,0]
[{"$f":"'Riepilogo Annuale'!A35","v":"E4"},null,null,null,null,null,null,null,null,null,null,null,null,null,null,null,null,null,null,null,null,null,null,null,null,null,null,null,null,null,null,null,0]
[{"$f":"'Riepilogo Annuale'!A36","v":"E5"},null,null,null,null,null,null,null,null,null,null,null,null,null,null,null,null,null,null,null,null,null,null,null,null,null,null,null,null,null,null,null,0]
[{"$f":"IF(     AND(ISNUMBER('Riepilogo Annuale'!O2),YEAR(TODAY())='Riepilogo Annuale'!O2,MONTH(TODAY())=12),     AG37/DAY(TODAY()),     AG37/AF2     )","v":0},null,null,null,null,null,null,null,null,null,null,null,null,null,null,null,null,null,null,null,null,null,null,null,null,null,null,null,null,null,null,null,{"$f":"SUM(AG32:AG36)","v":0}]

{"sheet":"Riepilogo Annuale","index":12,"n_rows":41,"n_cols":15,"rows_kept":41,"cut":false,"hidden":false,"merged":[[41,1,41,14],[2,0,2,14],[9,0,9,14],[16,0,16,14],[23,0,23,14],[30,0,30,14],[37,0,37,14],[39,0,39,14],[38,0,38,1],[40,0,40,1],[3,0,3,1],[4,0,4,1],[5,0,5,1],[6,0,6,1],[7,0,7,1],[10,0,10,1],[35,0,35,1],[21,0,21,1],[24,0,24,1],[25,0,25,1],[26,0,26,1],[27,0,27,1],[28,0,28,1],[31,0,31,1],[32,0,32,1],[33,0,33,1],[34,0,34,1],[0,0,0,14],[17,0,17,1],[18,0,18,1],[19,0,19,1],[20,0,20,1],[11,0,11,1],[12,0,12,1],[13,0,13,1],[14,0,14,1]]}
["CONTABILITÀ ANNUALE"]
[{"$f":"IF(AND(OR(C39<>0,D39<>0,E39<>0,F39<>0,G39<>0,H39<>0,I39<>0,J39<>0,K39<>0,L39<>0,M39<>0,N39<>0),OR(C41<>0,D41<>0,E41<>0,F41<>0,G41<>0,H41<>0,I41<>0,J41<>0,K41<>0,L41<>0,M41<>0,N41<>0)),100*SUM(O9,O16,O23,O30,O37)/SUM(C41:N41)/100,\"\")","v":""},null,"GEN","FEB","MAR","APR","MAG","GIU","LUG","AGO","SET","OTT","NOV","DIC","20.."]
[]
["A1",null,{"$f":"Gennaio!AG4","v":0},{"$f":"Febbraio!AG4","v":0},{"$f":"Marzo!AG4","v":0},{"$f":"Aprile!AG4","v":0},{"$f":"Maggio!AG4","v":0},{"$f":"Giugno!AG4","v":0},{"$f":"Luglio!AG4","v":0},{"$f":"Agosto!AG4","v":0},{"$f":"Settembre!AG4","v":0},{"$f":"Ottobre!AG4","v":0},{"$f":"Novembre!AG4","v":0},{"$f":"Dicembre!AG4","v":0},{"$f":"SUM(C4:N4)","v":0}]
["A2",null,{"$f":"Gennaio!AG5","v":0},{"$f":"Febbraio!AG5","v":0},{"$f":"Marzo!AG5","v":0},{"$f":"Aprile!AG5","v":0},{"$f":"Maggio!AG5","v":0},{"$f":"Giugno!AG5","v":0},{"$f":"Luglio!AG5","v":0},{"$f":"Agosto!AG5","v":0},{"$f":"Settembre!AG5","v":0},{"$f":"Ottobre!AG5","v":0},{"$f":"Novembre!AG5","v":0},{"$f":"Dicembre!AG5","v":0},0]
["A3",null,{"$f":"Gennaio!AG6","v":0},{"$f":"Febbraio!AG6","v":0},{"$f":"Marzo!AG6","v":0},{"$f":"Aprile!AG6","v":0},{"$f":"Maggio!AG6","v":0},{"$f":"Giugno!AG6","v":0},{"$f":"Luglio!AG6","v":0},{"$f":"Agosto!AG6","v":0},{"$f":"Settembre!AG6","v":0},{"$f":"Ottobre!AG6","v":0},{"$f":"Novembre!AG6","v":0},{"$f":"Dicembre!AG6","v":0},0]
["A4",null,{"$f":"Gennaio!AG7","v":0},{"$f":"Febbraio!AG7","v":0},{"$f":"Marzo!AG7","v":0},{"$f":"Aprile!AG7","v":0},{"$f":"Maggio!AG7","v":0},{"$f":"Giugno!AG7","v":0},{"$f":"Luglio!AG7","v":0},{"$f":"Agosto!AG7","v":0},{"$f":"Settembre!AG7","v":0},{"$f":"Ottobre!AG7","v":0},{"$f":"Novembre!AG7","v":0},{"$f":"Dicembre!AG7","v":0},0]
["A5",null,{"$f":"Gennaio!AG8","v":0},{"$f":"Febbraio!AG8","v":0},{"$f":"Marzo!AG8","v":0},{"$f":"Aprile!AG8","v":0},{"$f":"Maggio!AG8","v":0},{"$f":"Giugno!AG8","v":0},{"$f":"Luglio!AG8","v":0},{"$f":"Agosto!AG8","v":0},{"$f":"Settembre!AG8","v":0},{"$f":"Ottobre!AG8","v":0},{"$f":"Novembre!AG8","v":0},{"$f":"Dicembre!AG8","v":0},0]
[{"$f":"IF(AND(OR(C39<>0,D39<>0,E39<>0,F39<>0,G39<>0,H39<>0,I39<>0,J39<>0,K39<>0,L39<>0,M39<>0,N39<>0),OR(C41<>0,D41<>0,E41<>0,F41<>0,G41<>0,H41<>0,I41<>0,J41<>0,K41<>0,L41<>0,M41<>0,N41<>0)),100*O9/SUM(C41:N41)/100,\"\")","v":""},{"$f":"IF(AND(ISNUMBER(O2),MOD(YEAR(TODAY()),4)=0,YEAR(TODAY())>O2),     O9/366,     IF(AND(ISNUMBER(O2),YEAR(TODAY())>O2),     O9/365,     IF(AND(ISNUMBER(O2),YEAR(TODAY())=O2),O9/(DATEDIF(DATE(O2,1,0),DATE(YEAR(TODAY()),MONTH(TODAY()),DAY(TODAY())),     \"D\"     )),     \"\"     )))","v":""},{"$f":"SUM(C4:C8)","v":0},{"$f":"SUM(D4:D8)","v":0},0,0,0,0,0,0,0,0,0,0,{"$f":"SUM(O4:O8)","v":0}]
[]
["B1",null,{"$f":"Gennaio!AG11","v":0},{"$f":"Febbraio!AG11","v":0},{"$f":"Marzo!AG11","v":0},{"$f":"Aprile!AG11","v":0},{"$f":"Maggio!AG11","v":0},{"$f":"Giugno!AG11","v":0},{"$f":"Luglio!AG11","v":0},{"$f":"Agosto!AG11","v":0},{"$f":"Settembre!AG11","v":0},{"$f":"Ottobre!AG11","v":0},{"$f":"Novembre!AG11","v":0},{"$f":"Dicembre!AG11","v":0},{"$f":"SUM(C11:N11)","v":0}]
["B2",null,{"$f":"Gennaio!AG12","v":0},{"$f":"Febbraio!AG12","v":0},{"$f":"Marzo!AG12","v":0},{"$f":"Aprile!AG12","v":0},{"$f":"Maggio!AG12","v":0},{"$f":"Giugno!AG12","v":0},{"$f":"Luglio!AG12","v":0},{"$f":"Agosto!AG12","v":0},{"$f":"Settembre!AG12","v":0},{"$f":"Ottobre!AG12","v":0},{"$f":"Novembre!AG12","v":0},{"$f":"Dicembre!AG12","v":0},{"$f":"SUM(C12:N12)","v":0}]
["B3",null,{"$f":"Gennaio!AG13","v":0},{"$f":"Febbraio!AG13","v":0},{"$f":"Marzo!AG13","v":0},{"$f":"Aprile!AG13","v":0},{"$f":"Maggio!AG13","v":0},{"$f":"Giugno!AG13","v":0},{"$f":"Luglio!AG13","v":0},{"$f":"Agosto!AG13","v":0},{"$f":"Settembre!AG13","v":0},{"$f":"Ottobre!AG13","v":0},{"$f":"Novembre!AG13","v":0},{"$f":"Dicembre!AG13","v":0},{"$f":"SUM(C13:N13)","v":0}]
["B4",null,{"$f":"Gennaio!AG14","v":0},{"$f":"Febbraio!AG14","v":0},{"$f":"Marzo!AG14","v":0},{"$f":"Aprile!AG14","v":0},{"$f":"Maggio!AG14","v":0},{"$f":"Giugno!AG14","v":0},{"$f":"Luglio!AG14","v":0},{"$f":"Agosto!AG14","v":0},{"$f":"Settembre!AG14","v":0},{"$f":"Ottobre!AG14","v":0},{"$f":"Novembre!AG14","v":0},{"$f":"Dicembre!AG14","v":0},{"$f":"SUM(C14:N14)","v":0}]
["B5",null,{"$f":"Gennaio!AG15","v":0},{"$f":"Febbraio!AG15","v":0},{"$f":"Marzo!AG15","v":0},{"$f":"Aprile!AG15","v":0},{"$f":"Maggio!AG15","v":0},{"$f":"Giugno!AG15","v":0},{"$f":"Luglio!AG15","v":0},{"$f":"Agosto!AG15","v":0},{"$f":"Settembre!AG15","v":0},{"$f":"Ottobre!AG15","v":0},{"$f":"Novembre!AG15","v":0},{"$f":"Dicembre!AG15","v":0},{"$f":"SUM(C15:N15)","v":0}]
[{"$f":"IF(AND(OR(C39<>0,D39<>0,E39<>0,F39<>0,G39<>0,H39<>0,I39<>0,J39<>0,K39<>0,L39<>0,M39<>0,N39<>0),OR(C41<>0,D41<>0,E41<>0,F41<>0,G41<>0,H41<>0,I41<>0,J41<>0,K41<>0,L41<>0,M41<>0,N41<>0)),100*O16/SUM(C41:N41)/100,\"\")","v":""},{"$f":"IF(AND(ISNUMBER(O2),MOD(YEAR(TODAY()),4)=0,YEAR(TODAY())>O2),     O16/366,     IF(AND(ISNUMBER(O2),YEAR(TODAY())>O2),     O16/365,     IF(AND(ISNUMBER(O2),YEAR(TODAY())=O2),O16/(DATEDIF(DATE(O2,1,0),DATE(YEAR(TODAY()),MONTH(TODAY()),DAY(TODAY())),     \"D\"     )),     \"\"     )))","v":""},{"$f":"SUM(C11:C15)","v":0},{"$f":"SUM(D11:D15)","v":0},0,0,0,0,0,0,0,0,0,0,{"$f":"SUM(O11:O15)","v":0}]
[]
["C1",null,{"$f":"Gennaio!AG18","v":0},{"$f":"Febbraio!AG18","v":0},{"$f":"Marzo!AG18","v":0},{"$f":"Aprile!AG18","v":0},{"$f":"Maggio!AG18","v":0},{"$f":"Giugno!AG18","v":0},{"$f":"Luglio!AG18","v":0},{"$f":"Agosto!AG18","v":0},{"$f":"Settembre!AG18","v":0},{"$f":"Ottobre!AG18","v":0},{"$f":"Novembre!AG18","v":0},{"$f":"Dicembre!AG18","v":0},0]
["C2",null,{"$f":"Gennaio!AG19","v":0},{"$f":"Febbraio!AG19","v":0},{"$f":"Marzo!AG19","v":0},{"$f":"Aprile!AG19","v":0},{"$f":"Maggio!AG19","v":0},{"$f":"Giugno!AG19","v":0},{"$f":"Luglio!AG19","v":0},{"$f":"Agosto!AG19","v":0},{"$f":"Settembre!AG19","v":0},{"$f":"Ottobre!AG19","v":0},{"$f":"Novembre!AG19","v":0},{"$f":"Dicembre!AG19","v":0},{"$f":"SUM(C19:N19)","v":0}]
["C3",null,{"$f":"Gennaio!AG20","v":0},{"$f":"Febbraio!AG20","v":0},{"$f":"Marzo!AG20","v":0},{"$f":"Aprile!AG20","v":0},{"$f":"Maggio!AG20","v":0},{"$f":"Giugno!AG20","v":0},{"$f":"Luglio!AG20","v":0},{"$f":"Agosto!AG20","v":0},{"$f":"Settembre!AG20","v":0},{"$f":"Ottobre!AG20","v":0},{"$f":"Novembre!AG20","v":0},{"$f":"Dicembre!AG20","v":0},{"$f":"SUM(C20:N20)","v":0}]
["C4",null,{"$f":"Gennaio!AG21","v":0},{"$f":"Febbraio!AG21","v":0},{"$f":"Marzo!AG21","v":0},{"$f":"Aprile!AG21","v":0},{"$f":"Maggio!AG21","v":0},{"$f":"Giugno!AG21","v":0},{"$f":"Luglio!AG21","v":0},{"$f":"Agosto!AG21","v":0},{"$f":"Settembre!AG21","v":0},{"$f":"Ottobre!AG21","v":0},{"$f":"Novembre!AG21","v":0},{"$f":"Dicembre!AG21","v":0},{"$f":"SUM(C21:N21)","v":0}]
["C5",null,{"$f":"Gennaio!AG22","v":0},{"$f":"Febbraio!AG22","v":0},{"$f":"Marzo!AG22","v":0},{"$f":"Aprile!AG22","v":0},{"$f":"Maggio!AG22","v":0},{"$f":"Giugno!AG22","v":0},{"$f":"Luglio!AG22","v":0},{"$f":"Agosto!AG22","v":0},{"$f":"Settembre!AG22","v":0},{"$f":"Ottobre!AG22","v":0},{"$f":"Novembre!AG22","v":0},{"$f":"Dicembre!AG22","v":0},{"$f":"SUM(C22:N22)","v":0}]
[{"$f":"IF(AND(OR(C39<>0,D39<>0,E39<>0,F39<>0,G39<>0,H39<>0,I39<>0,J39<>0,K39<>0,L39<>0,M39<>0,N39<>0),OR(C41<>0,D41<>0,E41<>0,F41<>0,G41<>0,H41<>0,I41<>0,J41<>0,K41<>0,L41<>0,M41<>0,N41<>0)),100*O23/SUM(C41:N41)/100,\"\")","v":""},{"$f":"IF(AND(ISNUMBER(O2),MOD(YEAR(TODAY()),4)=0,YEAR(TODAY())>O2),     O23/366,     IF(AND(ISNUMBER(O2),YEAR(TODAY())>O2),     O23/365,     IF(AND(ISNUMBER(O2),YEAR(TODAY())=O2),O23/(DATEDIF(DATE(O2,1,0),DATE(YEAR(TODAY()),MONTH(TODAY()),DAY(TODAY())),     \"D\"     )),     \"\"     )))","v":""},{"$f":"SUM(C18:C22)","v":0},{"$f":"SUM(D18:D22)","v":0},0,0,0,0,0,0,0,0,0,0,{"$f":"SUM(O18:O22)","v":0}]
[]
["D1",null,{"$f":"Gennaio!AG25","v":0},{"$f":"Febbraio!AG25","v":0},{"$f":"Marzo!AG25","v":0},{"$f":"Aprile!AG25","v":0},{"$f":"Maggio!AG25","v":0},{"$f":"Giugno!AG25","v":0},{"$f":"Luglio!AG25","v":0},{"$f":"Agosto!AG25","v":0},{"$f":"Settembre!AG25","v":0},{"$f":"Ottobre!AG25","v":0},{"$f":"Novembre!AG25","v":0},{"$f":"Dicembre!AG25","v":0},{"$f":"SUM(C25:N25)","v":0}]
["D2",null,{"$f":"Gennaio!AG26","v":0},{"$f":"Febbraio!AG26","v":0},{"$f":"Marzo!AG26","v":0},{"$f":"Aprile!AG26","v":0},{"$f":"Maggio!AG26","v":0},{"$f":"Giugno!AG26","v":0},{"$f":"Luglio!AG26","v":0},{"$f":"Agosto!AG26","v":0},{"$f":"Settembre!AG26","v":0},{"$f":"Ottobre!AG26","v":0},{"$f":"Novembre!AG26","v":0},{"$f":"Dicembre!AG26","v":0},0]
["D3",null,{"$f":"Gennaio!AG27","v":0},{"$f":"Febbraio!AG27","v":0},{"$f":"Marzo!AG27","v":0},{"$f":"Aprile!AG27","v":0},{"$f":"Maggio!AG27","v":0},{"$f":"Giugno!AG27","v":0},{"$f":"Luglio!AG27","v":0},{"$f":"Agosto!AG27","v":0},{"$f":"Settembre!AG27","v":0},{"$f":"Ottobre!AG27","v":0},{"$f":"Novembre!AG27","v":0},{"$f":"Dicembre!AG27","v":0},0]
["D4",null,{"$f":"Gennaio!AG28","v":0},{"$f":"Febbraio!AG28","v":0},{"$f":"Marzo!AG28","v":0},{"$f":"Aprile!AG28","v":0},{"$f":"Maggio!AG28","v":0},{"$f":"Giugno!AG28","v":0},{"$f":"Luglio!AG28","v":0},{"$f":"Agosto!AG28","v":0},{"$f":"Settembre!AG28","v":0},{"$f":"Ottobre!AG28","v":0},{"$f":"Novembre!AG28","v":0},{"$f":"Dicembre!AG28","v":0},0]
["D5",null,{"$f":"Gennaio!AG29","v":0},{"$f":"Febbraio!AG29","v":0},{"$f":"Marzo!AG29","v":0},{"$f":"Aprile!AG29","v":0},{"$f":"Maggio!AG29","v":0},{"$f":"Giugno!AG29","v":0},{"$f":"Luglio!AG29","v":0},{"$f":"Agosto!AG29","v":0},{"$f":"Settembre!AG29","v":0},{"$f":"Ottobre!AG29","v":0},{"$f":"Novembre!AG29","v":0},{"$f":"Dicembre!AG29","v":0},0]
[{"$f":"IF(AND(OR(C39<>0,D39<>0,E39<>0,F39<>0,G39<>0,H39<>0,I39<>0,J39<>0,K39<>0,L39<>0,M39<>0,N39<>0),OR(C41<>0,D41<>0,E41<>0,F41<>0,G41<>0,H41<>0,I41<>0,J41<>0,K41<>0,L41<>0,M41<>0,N41<>0)),100*O30/SUM(C41:N41)/100,\"\")","v":""},{"$f":"IF(AND(ISNUMBER(O2),MOD(YEAR(TODAY()),4)=0,YEAR(TODAY())>O2),     O30/366,     IF(AND(ISNUMBER(O2),YEAR(TODAY())>O2),     O30/365,     IF(AND(ISNUMBER(O2),YEAR(TODAY())=O2),O30/(DATEDIF(DATE(O2,1,0),DATE(YEAR(TODAY()),MONTH(TODAY()),DAY(TODAY())),     \"D\"     )),     \"\"     )))","v":""},{"$f":"SUM(C25:C29)","v":0},{"$f":"SUM(D25:D29)","v":0},0,0,0,0,0,0,0,0,0,0,{"$f":"SUM(O25:O29)","v":0}]
[]
["E1",null,{"$f":"Gennaio!AG32","v":0},{"$f":"Febbraio!AG32","v":0},{"$f":"Marzo!AG32","v":0},{"$f":"Aprile!AG32","v":0},{"$f":"Maggio!AG32","v":0},{"$f":"Giugno!AG32","v":0},{"$f":"Luglio!AG32","v":0},{"$f":"Agosto!AG32","v":0},{"$f":"Settembre!AG32","v":0},{"$f":"Ottobre!AG32","v":0},{"$f":"Novembre!AG32","v":0},{"$f":"Dicembre!AG32","v":0},{"$f":"SUM(C32:N32)","v":0}]
["E2",null,{"$f":"Gennaio!AG33","v":0},{"$f":"Febbraio!AG33","v":0},{"$f":"Marzo!AG33","v":0},{"$f":"Aprile!AG33","v":0},{"$f":"Maggio!AG33","v":0},{"$f":"Giugno!AG33","v":0},{"$f":"Luglio!AG33","v":0},{"$f":"Agosto!AG33","v":0},{"$f":"Settembre!AG33","v":0},{"$f":"Ottobre!AG33","v":0},{"$f":"Novembre!AG33","v":0},{"$f":"Dicembre!AG33","v":0},0]
["E3",null,{"$f":"Gennaio!AG34","v":0},{"$f":"Febbraio!AG34","v":0},{"$f":"Marzo!AG34","v":0},{"$f":"Aprile!AG34","v":0},{"$f":"Maggio!AG34","v":0},{"$f":"Giugno!AG34","v":0},{"$f":"Luglio!AG34","v":0},{"$f":"Agosto!AG34","v":0},{"$f":"Settembre!AG34","v":0},{"$f":"Ottobre!AG34","v":0},{"$f":"Novembre!AG34","v":0},{"$f":"Dicembre!AG34","v":0},0]
["E4",null,{"$f":"Gennaio!AG35","v":0},{"$f":"Febbraio!AG35","v":0},{"$f":"Marzo!AG35","v":0},{"$f":"Aprile!AG35","v":0},{"$f":"Maggio!AG35","v":0},{"$f":"Giugno!AG35","v":0},{"$f":"Luglio!AG35","v":0},{"$f":"Agosto!AG35","v":0},{"$f":"Settembre!AG35","v":0},{"$f":"Ottobre!AG35","v":0},{"$f":"Novembre!AG35","v":0},{"$f":"Dicembre!AG35","v":0},0]
["E5",null,{"$f":"Gennaio!AG36","v":0},{"$f":"Febbraio!AG36","v":0},{"$f":"Marzo!AG36","v":0},{"$f":"Aprile!AG36","v":0},{"$f":"Maggio!AG36","v":0},{"$f":"Giugno!AG36","v":0},{"$f":"Luglio!AG36","v":0},{"$f":"Agosto!AG36","v":0},{"$f":"Settembre!AG36","v":0},{"$f":"Ottobre!AG36","v":0},{"$f":"Novembre!AG36","v":0},{"$f":"Dicembre!AG36","v":0},0]
[{"$f":"IF(AND(OR(C39<>0,D39<>0,E39<>0,F39<>0,G39<>0,H39<>0,I39<>0,J39<>0,K39<>0,L39<>0,M39<>0,N39<>0),OR(C41<>0,D41<>0,E41<>0,F41<>0,G41<>0,H41<>0,I41<>0,J41<>0,K41<>0,L41<>0,M41<>0,N41<>0)),100*O37/SUM(C41:N41)/100,\"\")","v":""},{"$f":"IF(AND(ISNUMBER(O2),MOD(YEAR(TODAY()),4)=0,YEAR(TODAY())>O2),     O37/366,     IF(AND(ISNUMBER(O2),YEAR(TODAY())>O2),     O37/365,     IF(AND(ISNUMBER(O2),YEAR(TODAY())=O2),O37/(DATEDIF(DATE(O2,1,0),DATE(YEAR(TODAY()),MONTH(TODAY()),DAY(TODAY())),     \"D\"     )),     \"\"     )))","v":""},{"$f":"SUM(C32:C36)","v":0},{"$f":"SUM(D32:D36)","v":0},0,0,0,0,0,0,0,0,0,0,{"$f":"SUM(O32:O36)","v":0}]
[]
["SPESA MENSILE",null,{"$f":"SUM(C9,C16,C23,C30,C37)","v":0},{"$f":"SUM(D9,D16,D23,D30,D37)","v":0},0,0,0,0,0,0,0,0,0,0,{"$f":"SUM(O9,O16,O23,O30,O37)","v":0}]
[]
["STIPENDIO MENSILE",null,null,null,null,null,null,null,null,null,null,null,null,null,{"$f":"(SUM(C41:N41)-O39)","v":0}]

{"sheet":"STAMPA - Riepilogo Annuale (A4)","index":13,"n_rows":41,"n_cols":15,"rows_kept":41,"cut":false,"hidden":false,"merged":[[0,0,0,14],[2,0,2,14],[9,0,9,14],[16,0,16,14],[23,0,23,14],[19,0,19,1],[20,0,20,1],[21,0,21,1],[37,0,37,14],[39,0,39,14],[38,0,38,1],[40,0,40,1],[3,0,3,1],[4,0,4,1],[5,0,5,1],[6,0,6,1],[7,0,7,1],[10,0,10,1],[11,0,11,1],[12,0,12,1],[13,0,13,1],[14,0,14,1],[17,0,17,1],[18,0,18,1],[24,0,24,1],[25,0,25,1],[33,0,33,1],[34,0,34,1],[35,0,35,1],[26,0,26,1],[27,0,27,1],[28,0,28,1],[31,0,31,1],[32,0,32,1],[30,0,30,14]]}
[{"$f":"'Riepilogo Annuale'!A1:O1","v":"CONTABILITÀ ANNUALE"}]
[{"$f":"'Riepilogo Annuale'!A2","v":""},{"$f":"'Riepilogo Annuale'!B2","v":0},{"$f":"'Riepilogo Annuale'!C2","v":"GEN"},{"$f":"'Riepilogo Annuale'!D2","v":"FEB"},{"$f":"'Riepilogo Annuale'!E2","v":"MAR"},{"$f":"'Riepilogo Annuale'!F2","v":"APR"},{"$f":"'Riepilogo Annuale'!G2","v":"MAG"},{"$f":"'Riepilogo Annuale'!H2","v":"GIU"},{"$f":"'Riepilogo Annuale'!I2","v":"LUG"},{"$f":"'Riepilogo Annuale'!J2","v":"AGO"},{"$f":"'Riepilogo Annuale'!K2","v":"SET"},{"$f":"'Riepilogo Annuale'!L2","v":"OTT"},{"$f":"'Riepilogo Annuale'!M2","v":"NOV"},{"$f":"'Riepilogo Annuale'!N2","v":"DIC"},{"$f":"'Riepilogo Annuale'!O2","v":"20.."}]
[]
[{"$f":"Gennaio!A4","v":"A1"},null,{"$f":"'Riepilogo Annuale'!C4","v":0},{"$f":"'Riepilogo Annuale'!D4","v":0},{"$f":"'Riepilogo Annuale'!E4","v":0},{"$f":"'Riepilogo Annuale'!F4","v":0},{"$f":"'Riepilogo Annuale'!G4","v":0},{"$f":"'Riepilogo Annuale'!H4","v":0},{"$f":"'Riepilogo Annuale'!I4","v":0},{"$f":"'Riepilogo Annuale'!J4","v":0},{"$f":"'Riepilogo Annuale'!K4","v":0},{"$f":"'Riepilogo Annuale'!L4","v":0},{"$f":"'Riepilogo Annuale'!M4","v":0},{"$f":"'Riepilogo Annuale'!N4","v":0},{"$f":"'Riepilogo Annuale'!O4","v":0}]
[{"$f":"Gennaio!A5","v":"A2"},null,{"$f":"'Riepilogo Annuale'!C5","v":0},{"$f":"'Riepilogo Annuale'!D5","v":0},{"$f":"'Riepilogo Annuale'!E5","v":0},{"$f":"'Riepilogo Annuale'!F5","v":0},{"$f":"'Riepilogo Annuale'!G5","v":0},{"$f":"'Riepilogo Annuale'!H5","v":0},{"$f":"'Riepilogo Annuale'!I5","v":0},{"$f":"'Riepilogo Annuale'!J5","v":0},{"$f":"'Riepilogo Annuale'!K5","v":0},{"$f":"'Riepilogo Annuale'!L5","v":0},{"$f":"'Riepilogo Annuale'!M5","v":0},{"$f":"'Riepilogo Annuale'!N5","v":0},{"$f":"'Riepilogo Annuale'!O5","v":0}]
[{"$f":"Gennaio!A6","v":"A3"},null,{"$f":"'Riepilogo Annuale'!C6","v":0},{"$f":"'Riepilogo Annuale'!D6","v":0},{"$f":"'Riepilogo Annuale'!E6","v":0},{"$f":"'Riepilogo Annuale'!F6","v":0},{"$f":"'Riepilogo Annuale'!G6","v":0},{"$f":"'Riepilogo Annuale'!H6","v":0},{"$f":"'Riepilogo Annuale'!I6","v":0},{"$f":"'Riepilogo Annuale'!J6","v":0},{"$f":"'Riepilogo Annuale'!K6","v":0},{"$f":"'Riepilogo Annuale'!L6","v":0},{"$f":"'Riepilogo Annuale'!M6","v":0},{"$f":"'Riepilogo Annuale'!N6","v":0},{"$f":"'Riepilogo Annuale'!O6","v":0}]
[{"$f":"Gennaio!A7","v":"A4"},null,{"$f":"'Riepilogo Annuale'!C7","v":0},{"$f":"'Riepilogo Annuale'!D7","v":0},{"$f":"'Riepilogo Annuale'!E7","v":0},{"$f":"'Riepilogo Annuale'!F7","v":0},{"$f":"'Riepilogo Annuale'!G7","v":0},{"$f":"'Riepilogo Annuale'!H7","v":0},{"$f":"'Riepilogo Annuale'!I7","v":0},{"$f":"'Riepilogo Annuale'!J7","v":0},{"$f":"'Riepilogo Annuale'!K7","v":0},{"$f":"'Riepilogo Annuale'!L7","v":0},{"$f":"'Riepilogo Annuale'!M7","v":0},{"$f":"'Riepilogo Annuale'!N7","v":0},{"$f":"'Riepilogo Annuale'!O7","v":0}]
[{"$f":"Gennaio!A8","v":"A5"},null,{"$f":"'Riepilogo Annuale'!C8","v":0},{"$f":"'Riepilogo Annuale'!D8","v":0},{"$f":"'Riepilogo Annuale'!E8","v":0},{"$f":"'Riepilogo Annuale'!F8","v":0},{"$f":"'Riepilogo Annuale'!G8","v":0},{"$f":"'Riepilogo Annuale'!H8","v":0},{"$f":"'Riepilogo Annuale'!I8","v":0},{"$f":"'Riepilogo Annuale'!J8","v":0},{"$f":"'Riepilogo Annuale'!K8","v":0},{"$f":"'Riepilogo Annuale'!L8","v":0},{"$f":"'Riepilogo Annuale'!M8","v":0},{"$f":"'Riepilogo Annuale'!N8","v":0},{"$f":"'Riepilogo Annuale'!O8","v":0}]
[{"$f":"'Riepilogo Annuale'!A9","v":""},{"$f":"'Riepilogo Annuale'!B9","v":""},{"$f":"'Riepilogo Annuale'!C9","v":0},{"$f":"'Riepilogo Annuale'!D9","v":0},{"$f":"'Riepilogo Annuale'!E9","v":0},{"$f":"'Riepilogo Annuale'!F9","v":0},{"$f":"'Riepilogo Annuale'!G9","v":0},{"$f":"'Riepilogo Annuale'!H9","v":0},{"$f":"'Riepilogo Annuale'!I9","v":0},{"$f":"'Riepilogo Annuale'!J9","v":0},{"$f":"'Riepilogo Annuale'!K9","v":0},{"$f":"'Riepilogo Annuale'!L9","v":0},{"$f":"'Riepilogo Annuale'!M9","v":0},{"$f":"'Riepilogo Annuale'!N9","v":0},{"$f":"'Riepilogo Annuale'!O9","v":0}]
[]
[{"$f":"'Riepilogo Annuale'!A11","v":"B1"},null,{"$f":"'Riepilogo Annuale'!C11","v":0},{"$f":"'Riepilogo Annuale'!D11","v":0},{"$f":"'Riepilogo Annuale'!E11","v":0},{"$f":"'Riepilogo Annuale'!F11","v":0},{"$f":"'Riepilogo Annuale'!G11","v":0},{"$f":"'Riepilogo Annuale'!H11","v":0},{"$f":"'Riepilogo Annuale'!I11","v":0},{"$f":"'Riepilogo Annuale'!J11","v":0},{"$f":"'Riepilogo Annuale'!K11","v":0},{"$f":"'Riepilogo Annuale'!L11","v":0},{"$f":"'Riepilogo Annuale'!M11","v":0},{"$f":"'Riepilogo Annuale'!N11","v":0},{"$f":"'Riepilogo Annuale'!O11","v":0}]
[{"$f":"'Riepilogo Annuale'!A12","v":"B2"},null,{"$f":"'Riepilogo Annuale'!C12","v":0},{"$f":"'Riepilogo Annuale'!D12","v":0},{"$f":"'Riepilogo Annuale'!E12","v":0},{"$f":"'Riepilogo Annuale'!F12","v":0},{"$f":"'Riepilogo Annuale'!G12","v":0},{"$f":"'Riepilogo Annuale'!H12","v":0},{"$f":"'Riepilogo Annuale'!I12","v":0},{"$f":"'Riepilogo Annuale'!J12","v":0},{"$f":"'Riepilogo Annuale'!K12","v":0},{"$f":"'Riepilogo Annuale'!L12","v":0},{"$f":"'Riepilogo Annuale'!M12","v":0},{"$f":"'Riepilogo Annuale'!N12","v":0},{"$f":"'Riepilogo Annuale'!O12","v":0}]
[{"$f":"'Riepilogo Annuale'!A13","v":"B3"},null,{"$f":"'Riepilogo Annuale'!C13","v":0},{"$f":"'Riepilogo Annuale'!D13","v":0},{"$f":"'Riepilogo Annuale'!E13","v":0},{"$f":"'Riepilogo Annuale'!F13","v":0},{"$f":"'Riepilogo Annuale'!G13","v":0},{"$f":"'Riepilogo Annuale'!H13","v":0},{"$f":"'Riepilogo Annuale'!I13","v":0},{"$f":"'Riepilogo Annuale'!J13","v":0},{"$f":"'Riepilogo Annuale'!K13","v":0},{"$f":"'Riepilogo Annuale'!L13","v":0},{"$f":"'Riepilogo Annuale'!M13","v":0},{"$f":"'Riepilogo Annuale'!N13","v":0},{"$f":"'Riepilogo Annuale'!O13","v":0}]
[{"$f":"'Riepilogo Annuale'!A14","v":"B4"},null,{"$f":"'Riepilogo Annuale'!C14","v":0},{"$f":"'Riepilogo Annuale'!D14","v":0},{"$f":"'Riepilogo Annuale'!E14","v":0},{"$f":"'Riepilogo Annuale'!F14","v":0},{"$f":"'Riepilogo Annuale'!G14","v":0},{"$f":"'Riepilogo Annuale'!H14","v":0},{"$f":"'Riepilogo Annuale'!I14","v":0},{"$f":"'Riepilogo Annuale'!J14","v":0},{"$f":"'Riepilogo Annuale'!K14","v":0},{"$f":"'Riepilogo Annuale'!L14","v":0},{"$f":"'Riepilogo Annuale'!M14","v":0},{"$f":"'Riepilogo Annuale'!N14","v":0},{"$f":"'Riepilogo Annuale'!O14","v":0}]
[{"$f":"'Riepilogo Annuale'!A15","v":"B5"},null,{"$f":"'Riepilogo Annuale'!C15","v":0},{"$f":"'Riepilogo Annuale'!D15","v":0},{"$f":"'Riepilogo Annuale'!E15","v":0},{"$f":"'Riepilogo Annuale'!F15","v":0},{"$f":"'Riepilogo Annuale'!G15","v":0},{"$f":"'Riepilogo Annuale'!H15","v":0},{"$f":"'Riepilogo Annuale'!I15","v":0},{"$f":"'Riepilogo Annuale'!J15","v":0},{"$f":"'Riepilogo Annuale'!K15","v":0},{"$f":"'Riepilogo Annuale'!L15","v":0},{"$f":"'Riepilogo Annuale'!M15","v":0},{"$f":"'Riepilogo Annuale'!N15","v":0},{"$f":"'Riepilogo Annuale'!O15","v":0}]
[{"$f":"'Riepilogo Annuale'!A16","v":""},{"$f":"'Riepilogo Annuale'!B16","v":""},{"$f":"'Riepilogo Annuale'!C16","v":0},{"$f":"'Riepilogo Annuale'!D16","v":0},{"$f":"'Riepilogo Annuale'!E16","v":0},{"$f":"'Riepilogo Annuale'!F16","v":0},{"$f":"'Riepilogo Annuale'!G16","v":0},{"$f":"'Riepilogo Annuale'!H16","v":0},{"$f":"'Riepilogo Annuale'!I16","v":0},{"$f":"'Riepilogo Annuale'!J16","v":0},{"$f":"'Riepilogo Annuale'!K16","v":0},{"$f":"'Riepilogo Annuale'!L16","v":0},{"$f":"'Riepilogo Annuale'!M16","v":0},{"$f":"'Riepilogo Annuale'!N16","v":0},{"$f":"'Riepilogo Annuale'!O16","v":0}]
[]
[{"$f":"'Riepilogo Annuale'!A18","v":"C1"},null,{"$f":"'Riepilogo Annuale'!C18","v":0},{"$f":"'Riepilogo Annuale'!D18","v":0},{"$f":"'Riepilogo Annuale'!E18","v":0},{"$f":"'Riepilogo Annuale'!F18","v":0},{"$f":"'Riepilogo Annuale'!G18","v":0},{"$f":"'Riepilogo Annuale'!H18","v":0},{"$f":"'Riepilogo Annuale'!I18","v":0},{"$f":"'Riepilogo Annuale'!J18","v":0},{"$f":"'Riepilogo Annuale'!K18","v":0},{"$f":"'Riepilogo Annuale'!L18","v":0},{"$f":"'Riepilogo Annuale'!M18","v":0},{"$f":"'Riepilogo Annuale'!N18","v":0},{"$f":"'Riepilogo Annuale'!O18","v":0}]
[{"$f":"'Riepilogo Annuale'!A19","v":"C2"},null,{"$f":"'Riepilogo Annuale'!C19","v":0},{"$f":"'Riepilogo Annuale'!D19","v":0},{"$f":"'Riepilogo Annuale'!E19","v":0},{"$f":"'Riepilogo Annuale'!F19","v":0},{"$f":"'Riepilogo Annuale'!G19","v":0},{"$f":"'Riepilogo Annuale'!H19","v":0},{"$f":"'Riepilogo Annuale'!I19","v":0},{"$f":"'Riepilogo Annuale'!J19","v":0},{"$f":"'Riepilogo Annuale'!K19","v":0},{"$f":"'Riepilogo Annuale'!L19","v":0},{"$f":"'Riepilogo Annuale'!M19","v":0},{"$f":"'Riepilogo Annuale'!N19","v":0},{"$f":"'Riepilogo Annuale'!O19","v":0}]
[{"$f":"'Riepilogo Annuale'!A20","v":"C3"},null,{"$f":"'Riepilogo Annuale'!C20","v":0},{"$f":"'Riepilogo Annuale'!D20","v":0},{"$f":"'Riepilogo Annuale'!E20","v":0},{"$f":"'Riepilogo Annuale'!F20","v":0},{"$f":"'Riepilogo Annuale'!G20","v":0},{"$f":"'Riepilogo Annuale'!H20","v":0},{"$f":"'Riepilogo Annuale'!I20","v":0},{"$f":"'Riepilogo Annuale'!J20","v":0},{"$f":"'Riepilogo Annuale'!K20","v":0},{"$f":"'Riepilogo Annuale'!L20","v":0},{"$f":"'Riepilogo Annuale'!M20","v":0},{"$f":"'Riepilogo Annuale'!N20","v":0},{"$f":"'Riepilogo Annuale'!O20","v":0}]
[{"$f":"'Riepilogo Annuale'!A21","v":"C4"},null,{"$f":"'Riepilogo Annuale'!C21","v":0},{"$f":"'Riepilogo Annuale'!D21","v":0},{"$f":"'Riepilogo Annuale'!E21","v":0},{"$f":"'Riepilogo Annuale'!F21","v":0},{"$f":"'Riepilogo Annuale'!G21","v":0},{"$f":"'Riepilogo Annuale'!H21","v":0},{"$f":"'Riepilogo Annuale'!I21","v":0},{"$f":"'Riepilogo Annuale'!J21","v":0},{"$f":"'Riepilogo Annuale'!K21","v":0},{"$f":"'Riepilogo Annuale'!L21","v":0},{"$f":"'Riepilogo Annuale'!M21","v":0},{"$f":"'Riepilogo Annuale'!N21","v":0},{"$f":"'Riepilogo Annuale'!O21","v":0}]
[{"$f":"'Riepilogo Annuale'!A22","v":"C5"},null,{"$f":"'Riepilogo Annuale'!C22","v":0},{"$f":"'Riepilogo Annuale'!D22","v":0},{"$f":"'Riepilogo Annuale'!E22","v":0},{"$f":"'Riepilogo Annuale'!F22","v":0},{"$f":"'Riepilogo Annuale'!G22","v":0},{"$f":"'Riepilogo Annuale'!H22","v":0},{"$f":"'Riepilogo Annuale'!I22","v":0},{"$f":"'Riepilogo Annuale'!J22","v":0},{"$f":"'Riepilogo Annuale'!K22","v":0},{"$f":"'Riepilogo Annuale'!L22","v":0},{"$f":"'Riepilogo Annuale'!M22","v":0},{"$f":"'Riepilogo Annuale'!N22","v":0},{"$f":"'Riepilogo Annuale'!O22","v":0}]
[{"$f":"'Riepilogo Annuale'!A23","v":""},{"$f":"'Riepilogo Annuale'!B23","v":""},{"$f":"'Riepilogo Annuale'!C23","v":0},{"$f":"'Riepilogo Annuale'!D23","v":0},{"$f":"'Riepilogo Annuale'!E23","v":0},{"$f":"'Riepilogo Annuale'!F23","v":0},{"$f":"'Riepilogo Annuale'!G23","v":0},{"$f":"'Riepilogo Annuale'!H23","v":0},{"$f":"'Riepilogo Annuale'!I23","v":0},{"$f":"'Riepilogo Annuale'!J23","v":0},{"$f":"'Riepilogo Annuale'!K23","v":0},{"$f":"'Riepilogo Annuale'!L23","v":0},{"$f":"'Riepilogo Annuale'!M23","v":0},{"$f":"'Riepilogo Annuale'!N23","v":0},{"$f":"'Riepilogo Annuale'!O23","v":0}]
[]
[{"$f":"'Riepilogo Annuale'!A25","v":"D1"},null,{"$f":"'Riepilogo Annuale'!C25","v":0},{"$f":"'Riepilogo Annuale'!D25","v":0},{"$f":"'Riepilogo Annuale'!E25","v":0},{"$f":"'Riepilogo Annuale'!F25","v":0},{"$f":"'Riepilogo Annuale'!G25","v":0},{"$f":"'Riepilogo Annuale'!H25","v":0},{"$f":"'Riepilogo Annuale'!I25","v":0},{"$f":"'Riepilogo Annuale'!J25","v":0},{"$f":"'Riepilogo Annuale'!K25","v":0},{"$f":"'Riepilogo Annuale'!L25","v":0},{"$f":"'Riepilogo Annuale'!M25","v":0},{"$f":"'Riepilogo Annuale'!N25","v":0},{"$f":"'Riepilogo Annuale'!O25","v":0}]
[{"$f":"'Riepilogo Annuale'!A26","v":"D2"},null,{"$f":"'Riepilogo Annuale'!C26","v":0},{"$f":"'Riepilogo Annuale'!D26","v":0},{"$f":"'Riepilogo Annuale'!E26","v":0},{"$f":"'Riepilogo Annuale'!F26","v":0},{"$f":"'Riepilogo Annuale'!G26","v":0},{"$f":"'Riepilogo Annuale'!H26","v":0},{"$f":"'Riepilogo Annuale'!I26","v":0},{"$f":"'Riepilogo Annuale'!J26","v":0},{"$f":"'Riepilogo Annuale'!K26","v":0},{"$f":"'Riepilogo Annuale'!L26","v":0},{"$f":"'Riepilogo Annuale'!M26","v":0},{"$f":"'Riepilogo Annuale'!N26","v":0},{"$f":"'Riepilogo Annuale'!O26","v":0}]
[{"$f":"'Riepilogo Annuale'!A27","v":"D3"},null,{"$f":"'Riepilogo Annuale'!C27","v":0},{"$f":"'Riepilogo Annuale'!D27","v":0},{"$f":"'Riepilogo Annuale'!E27","v":0},{"$f":"'Riepilogo Annuale'!F27","v":0},{"$f":"'Riepilogo Annuale'!G27","v":0},{"$f":"'Riepilogo Annuale'!H27","v":0},{"$f":"'Riepilogo Annuale'!I27","v":0},{"$f":"'Riepilogo Annuale'!J27","v":0},{"$f":"'Riepilogo Annuale'!K27","v":0},{"$f":"'Riepilogo Annuale'!L27","v":0},{"$f":"'Riepilogo Annuale'!M27","v":0},{"$f":"'Riepilogo Annuale'!N27","v":0},{"$f":"'Riepilogo Annuale'!O27","v":0}]
[{"$f":"'Riepilogo Annuale'!A28","v":"D4"},null,{"$f":"'Riepilogo Annuale'!C28","v":0},{"$f":"'Riepilogo Annuale'!D28","v":0},{"$f":"'Riepilogo Annuale'!E28","v":0},{"$f":"'Riepilogo Annuale'!F28","v":0},{"$f":"'Riepilogo Annuale'!G28","v":0},{"$f":"'Riepilogo Annuale'!H28","v":0},{"$f":"'Riepilogo Annuale'!I28","v":0},{"$f":"'Riepilogo Annuale'!J28","v":0},{"$f":"'Riepilogo Annuale'!K28","v":0},{"$f":"'Riepilogo Annuale'!L28","v":0},{"$f":"'Riepilogo Annuale'!M28","v":0},{"$f":"'Riepilogo Annuale'!N28","v":0},{"$f":"'Riepilogo Annuale'!O28","v":0}]
[{"$f":"'Riepilogo Annuale'!A29","v":"D5"},null,{"$f":"'Riepilogo Annuale'!C29","v":0},{"$f":"'Riepilogo Annuale'!D29","v":0},{"$f":"'Riepilogo Annuale'!E29","v":0},{"$f":"'Riepilogo Annuale'!F29","v":0},{"$f":"'Riepilogo Annuale'!G29","v":0},{"$f":"'Riepilogo Annuale'!H29","v":0},{"$f":"'Riepilogo Annuale'!I29","v":0},{"$f":"'Riepilogo Annuale'!J29","v":0},{"$f":"'Riepilogo Annuale'!K29","v":0},{"$f":"'Riepilogo Annuale'!L29","v":0},{"$f":"'Riepilogo Annuale'!M29","v":0},{"$f":"'Riepilogo Annuale'!N29","v":0},{"$f":"'Riepilogo Annuale'!O29","v":0}]
[{"$f":"'Riepilogo Annuale'!A30","v":""},{"$f":"'Riepilogo Annuale'!B30","v":""},{"$f":"'Riepilogo Annuale'!C30","v":0},{"$f":"'Riepilogo Annuale'!D30","v":0},{"$f":"'Riepilogo Annuale'!E30","v":0},{"$f":"'Riepilogo Annuale'!F30","v":0},{"$f":"'Riepilogo Annuale'!G30","v":0},{"$f":"'Riepilogo Annuale'!H30","v":0},{"$f":"'Riepilogo Annuale'!I30","v":0},{"$f":"'Riepilogo Annuale'!J30","v":0},{"$f":"'Riepilogo Annuale'!K30","v":0},{"$f":"'Riepilogo Annuale'!L30","v":0},{"$f":"'Riepilogo Annuale'!M30","v":0},{"$f":"'Riepilogo Annuale'!N30","v":0},{"$f":"'Riepilogo Annuale'!O30","v":0}]
[]
[{"$f":"'Riepilogo Annuale'!A32","v":"E1"},null,{"$f":"'Riepilogo Annuale'!C32","v":0},{"$f":"'Riepilogo Annuale'!D32","v":0},{"$f":"'Riepilogo Annuale'!E32","v":0},{"$f":"'Riepilogo Annuale'!F32","v":0},{"$f":"'Riepilogo Annuale'!G32","v":0},{"$f":"'Riepilogo Annuale'!H32","v":0},{"$f":"'Riepilogo Annuale'!I32","v":0},{"$f":"'Riepilogo Annuale'!J32","v":0},{"$f":"'Riepilogo Annuale'!K32","v":0},{"$f":"'Riepilogo Annuale'!L32","v":0},{"$f":"'Riepilogo Annuale'!M32","v":0},{"$f":"'Riepilogo Annuale'!N32","v":0},{"$f":"'Riepilogo Annuale'!O32","v":0}]
[{"$f":"'Riepilogo Annuale'!A33","v":"E2"},null,{"$f":"'Riepilogo Annuale'!C33","v":0},{"$f":"'Riepilogo Annuale'!D33","v":0},{"$f":"'Riepilogo Annuale'!E33","v":0},{"$f":"'Riepilogo Annuale'!F33","v":0},{"$f":"'Riepilogo Annuale'!G33","v":0},{"$f":"'Riepilogo Annuale'!H33","v":0},{"$f":"'Riepilogo Annuale'!I33","v":0},{"$f":"'Riepilogo Annuale'!J33","v":0},{"$f":"'Riepilogo Annuale'!K33","v":0},{"$f":"'Riepilogo Annuale'!L33","v":0},{"$f":"'Riepilogo Annuale'!M33","v":0},{"$f":"'Riepilogo Annuale'!N33","v":0},{"$f":"'Riepilogo Annuale'!O33","v":0}]
[{"$f":"'Riepilogo Annuale'!A34","v":"E3"},null,{"$f":"'Riepilogo Annuale'!C34","v":0},{"$f":"'Riepilogo Annuale'!D34","v":0},{"$f":"'Riepilogo Annuale'!E34","v":0},{"$f":"'Riepilogo Annuale'!F34","v":0},{"$f":"'Riepilogo Annuale'!G34","v":0},{"$f":"'Riepilogo Annuale'!H34","v":0},{"$f":"'Riepilogo Annuale'!I34","v":0},{"$f":"'Riepilogo Annuale'!J34","v":0},{"$f":"'Riepilogo Annuale'!K34","v":0},{"$f":"'Riepilogo Annuale'!L34","v":0},{"$f":"'Riepilogo Annuale'!M34","v":0},{"$f":"'Riepilogo Annuale'!N34","v":0},{"$f":"'Riepilogo Annuale'!O34","v":0}]
[{"$f":"'Riepilogo Annuale'!A35","v":"E4"},null,{"$f":"'Riepilogo Annuale'!C35","v":0},{"$f":"'Riepilogo Annuale'!D35","v":0},{"$f":"'Riepilogo Annuale'!E35","v":0},{"$f":"'Riepilogo Annuale'!F35","v":0},{"$f":"'Riepilogo Annuale'!G35","v":0},{"$f":"'Riepilogo Annuale'!H35","v":0},{"$f":"'Riepilogo Annuale'!I35","v":0},{"$f":"'Riepilogo Annuale'!J35","v":0},{"$f":"'Riepilogo Annuale'!K35","v":0},{"$f":"'Riepilogo Annuale'!L35","v":0},{"$f":"'Riepilogo Annuale'!M35","v":0},{"$f":"'Riepilogo Annuale'!N35","v":0},{"$f":"'Riepilogo Annuale'!O35","v":0}]
[{"$f":"'Riepilogo Annuale'!A36","v":"E5"},null,{"$f":"'Riepilogo Annuale'!C36","v":0},{"$f":"'Riepilogo Annuale'!D36","v":0},{"$f":"'Riepilogo Annuale'!E36","v":0},{"$f":"'Riepilogo Annuale'!F36","v":0},{"$f":"'Riepilogo Annuale'!G36","v":0},{"$f":"'Riepilogo Annuale'!H36","v":0},{"$f":"'Riepilogo Annuale'!I36","v":0},{"$f":"'Riepilogo Annuale'!J36","v":0},{"$f":"'Riepilogo Annuale'!K36","v":0},{"$f":"'Riepilogo Annuale'!L36","v":0},{"$f":"'Riepilogo Annuale'!M36","v":0},{"$f":"'Riepilogo Annuale'!N36","v":0},{"$f":"'Riepilogo Annuale'!O36","v":0}]
[{"$f":"'Riepilogo Annuale'!A37","v":""},{"$f":"'Riepilogo Annuale'!B37","v":""},{"$f":"'Riepilogo Annuale'!C37","v":0},{"$f":"'Riepilogo Annuale'!D37","v":0},{"$f":"'Riepilogo Annuale'!E37","v":0},{"$f":"'Riepilogo Annuale'!F37","v":0},{"$f":"'Riepilogo Annuale'!G37","v":0},{"$f":"'Riepilogo Annuale'!H37","v":0},{"$f":"'Riepilogo Annuale'!I37","v":0},{"$f":"'Riepilogo Annuale'!J37","v":0},{"$f":"'Riepilogo Annuale'!K37","v":0},{"$f":"'Riepilogo Annuale'!L37","v":0},{"$f":"'Riepilogo Annuale'!M37","v":0},{"$f":"'Riepilogo Annuale'!N37","v":0},{"$f":"'Riepilogo Annuale'!O37","v":0}]
[]
[{"$f":"'Riepilogo Annuale'!A39:B39","v":"SPESA MENSILE"},null,{"$f":"'Riepilogo Annuale'!C39","v":0},{"$f":"'Riepilogo Annuale'!D39","v":0},{"$f":"'Riepilogo Annuale'!E39","v":0},{"$f":"'Riepilogo Annuale'!F39","v":0},{"$f":"'Riepilogo Annuale'!G39","v":0},{"$f":"'Riepilogo Annuale'!H39","v":0},{"$f":"'Riepilogo Annuale'!I39","v":0},{"$f":"'Riepilogo Annuale'!J39","v":0},{"$f":"'Riepilogo Annuale'!K39","v":0},{"$f":"'Riepilogo Annuale'!L39","v":0},{"$f":"'Riepilogo Annuale'!M39","v":0},{"$f":"'Riepilogo Annuale'!N39","v":0},{"$f":"'Riepilogo Annuale'!O39","v":0}]
[]
[{"$f":"'Riepilogo Annuale'!A41:B41","v":"STIPENDIO MENSILE"},null,{"$f":"'Riepilogo Annuale'!C41","v":0},{"$f":"'Riepilogo Annuale'!D41","v":0},{"$f":"'Riepilogo Annuale'!E41","v":0},{"$f":"'Riepilogo Annuale'!F41","v":0},{"$f":"'Riepilogo Annuale'!G41","v":0},{"$f":"'Riepilogo Annuale'!H41","v":0},{"$f":"'Riepilogo Annuale'!I41","v":0},{"$f":"'Riepilogo Annuale'!J41","v":0},{"$f":"'Riepilogo Annuale'!K41","v":0},{"$f":"'Riepilogo Annuale'!L41","v":0},{"$f":"'Riepilogo Annuale'!M41","v":0},{"$f":"'Riepilogo Annuale'!N41","v":0},{"$f":"'Riepilogo Annuale'!O41","v":0}]

{"sheet":"Grafico riepilogativo","index":14,"n_rows":28,"n_cols":2,"rows_kept":28,"cut":false,"hidden":false,"merged":[[0,0,0,1],[28,0,28,1]]}
[]
["Voci","€"]
[{"$f":"'Riepilogo Annuale'!A4","v":"A1"},{"$f":"'Riepilogo Annuale'!O4","v":0}]
[{"$f":"'Riepilogo Annuale'!A5","v":"A2"},{"$f":"'Riepilogo Annuale'!O5","v":0}]
[{"$f":"'Riepilogo Annuale'!A6","v":"A3"},{"$f":"'Riepilogo Annuale'!O6","v":0}]
[{"$f":"'Riepilogo Annuale'!A7","v":"A4"},{"$f":"'Riepilogo Annuale'!O7","v":0}]
[{"$f":"'Riepilogo Annuale'!A8","v":"A5"},{"$f":"'Riepilogo Annuale'!O8","v":0}]
[{"$f":"'Riepilogo Annuale'!A11","v":"B1"},{"$f":"'Riepilogo Annuale'!O11","v":0}]
[{"$f":"'Riepilogo Annuale'!A12","v":"B2"},{"$f":"'Riepilogo Annuale'!O12","v":0}]
[{"$f":"'Riepilogo Annuale'!A13","v":"B3"},{"$f":"'Riepilogo Annuale'!O13","v":0}]
[{"$f":"'Riepilogo Annuale'!A14","v":"B4"},{"$f":"'Riepilogo Annuale'!O14","v":0}]
[{"$f":"'Riepilogo Annuale'!A15","v":"B5"},{"$f":"'Riepilogo Annuale'!O15","v":0}]
[{"$f":"'Riepilogo Annuale'!A18","v":"C1"},{"$f":"'Riepilogo Annuale'!O18","v":0}]
[{"$f":"'Riepilogo Annuale'!A19","v":"C2"},{"$f":"'Riepilogo Annuale'!O19","v":0}]
[{"$f":"'Riepilogo Annuale'!A20","v":"C3"},{"$f":"'Riepilogo Annuale'!O20","v":0}]
[{"$f":"'Riepilogo Annuale'!A21","v":"C4"},{"$f":"'Riepilogo Annuale'!O21","v":0}]
[{"$f":"'Riepilogo Annuale'!A22","v":"C5"},{"$f":"'Riepilogo Annuale'!O22","v":0}]
[{"$f":"'Riepilogo Annuale'!A25","v":"D1"},{"$f":"'Riepilogo Annuale'!O25","v":0}]
[{"$f":"'Riepilogo Annuale'!A26","v":"D2"},{"$f":"'Riepilogo Annuale'!O26","v":0}]
[{"$f":"'Riepilogo Annuale'!A27","v":"D3"},{"$f":"'Riepilogo Annuale'!O27","v":0}]
[{"$f":"'Riepilogo Annuale'!A28","v":"D4"},{"$f":"'Riepilogo Annuale'!O28","v":0}]
[{"$f":"'Riepilogo Annuale'!A29","v":"D5"},{"$f":"'Riepilogo Annuale'!O29","v":0}]
[{"$f":"'Riepilogo Annuale'!A32","v":"E1"},{"$f":"'Riepilogo Annuale'!O32","v":0}]
[{"$f":"'Riepilogo Annuale'!A33","v":"E2"},{"$f":"'Riepilogo Annuale'!O33","v":0}]
[{"$f":"'Riepilogo Annuale'!A34","v":"E3"},{"$f":"'Riepilogo Annuale'!O34","v":0}]
[{"$f":"'Riepilogo Annuale'!A35","v":"E4"},{"$f":"'Riepilogo Annuale'!O35","v":0}]
[{"$f":"'Riepilogo Annuale'!A36","v":"E5"},{"$f":"'Riepilogo Annuale'!O36","v":0}]
["Entrate annuali",{"$f":"SUM('Riepilogo Annuale'!C41:N41)","v":0}]